Cogmind - Beta 12 @@@ ROGUE MODE // 2023.05.27 @ 00:51:03 Player: Terminus Result: Destroyed by Executioner with Helical Railgun Performance ------------- Evolutions (9) 4500 Regions Visited (36) 7200 Robots Destroyed (818) 4090 Value Destroyed (43887) 43887 Prototype IDs (85) 1700 Alien Tech Used (11) 2200 Bonus (48108) 48108 TOTAL SCORE: 111685 Bonus ------- Triggered High Security 2000 High Alert Combat Kills 33470 Follower Combat Kills 5477 Network Hubs Disabled 200 Met Imprinter 300 Was Imprinted 300 Met Zhirov 300 Met Warlord at Base 500 MAIN.C Attacked Warlord 500 Warlord Defense Kills 3006 Built Enhanced Grunts 300 Used Core Reset Matrix 3000 Scanned by Researcher 500 Friendly Fire -1745 Cogmind --------- Core Integrity 0/1600 Matter 290/300 Energy 80/100 System Corruption 0% Temperature Cool (0) Movement Core (50) Location -1/Command Parts ------- > --- POWER (4) -------- (None) > --- PROPULSION (2) --- Impulse Thruster Array > --- UTILITY (15) ----- Spacefold Activator > --- WEAPON (5) ------- (None) > --- INVENTORY (7) ---- Heavy Siege Treads Experimental Cooling System Advanced Terrain Scanner Antimissile System Antimissile System Transdimensional Reconstructor Peak State ------------ > --- POWER ------------ Reinforced Quantum Reactor Reinforced Quantum Reactor Reinforced Quantum Reactor Improved Quantum Reactor > --- PROPULSION ------- Compact Wheel High-density Centrium Wheel > --- UTILITY ---------- 2N-1CE's Frost Array Huge Storage Unit Experimental Energy Well Advanced Terrain Scanner Advanced Terrain Scan Processor Advanced Targeting Computer Experimental Core Analyzer Experimental Core Analyzer Advanced Weapon Cycler Advanced Transmission Jammer Heavy Regenerative Plating Heavy Regenerative Plating AEGIS Remote Shield > --- WEAPON ----------- Phase Gun Sigix Sheargun Sigix Sheargun Sigix Sheargun Sigix Sheargun > --- INVENTORY -------- Reinforced Antimatter Reactor Light Quantum Reactor Wheel Armored Wheel Graphene Brace Improved Dynamic Insulation System Hacking Drone Bay Transdimensional Reconstructor Spacefold Activator Heavy Laser Heavy Gatling Laser Phase Gun Phase Gun Quantum Rifle Heavy Dispersion Rifle Cooled Nova Cannon [Rating: 219] Favorites ----------- Power Improved Quantum Reactor Engine Cooled Ion Engine Power Core Neutrino Core Reactor Improved Quantum Reactor Propulsion Armored Huge Wheel Treads Heavy Siege Treads Wheel Armored Huge Wheel Utility Huge Storage Unit Device Advanced Terrain Scanner Storage Huge Storage Unit Processor Advanced Targeting Computer Hackware Hacking Suite Protection Heavy Regenerative Plating Artifact Spacefold Activator Weapon Heavy Particle Gun Energy Gun Heavy Particle Gun Energy Cannon Cooled Nova Cannon Ballistic Gun Assault Rifle Launcher Hellfire Missile Launcher Special Weapon Remote Datajack Impact Weapon Power Maul Build | -11 -10 -10 -9 -9 -9 -8 -8 -7 -7 -7 -7 -6 -6 -6 -6 -6 -6 -5 -5 -5 -5 -5 -5 -4 -4 -4 -4 -4 -3 -3 -3 -2 -2 -2 -1 -1 ------- Run | Jun Mat Min Mat Min Exi Min Mat Fac Low Low Zio Pro Fac Ext Cet Arc Hub Fac Was Fac Upp Upp War Pro Fac Upp Upp Zhi Pro Res Tes Res Qua Sec Acc Com Slots Evolved 18 | . . . 2 . . . 2 2 . . . . 2 . . . . 2 . . . . . . 2 . . . . 2 . 2 . . 2 . Power 2 | . . . . . . . . . . . . . 1 . . . . . . . . . . . . . . . . 1 . . . . . . Propulsion . | . . . . . . . . . . . . . . . . . . . . . . . . . . . . . . . . . . . . . Utility 13 | . . . 1 . . . 2 2 . . . . . . . . . 2 . . . . . . 1 . . . . 1 . 2 . . 2 . Weapon 3 | . . . 1 . . . . . . . . . 1 . . . . . . . . . . . 1 . . . . . . . . . . . Parts Attached 890 | 6 30 2 24 2 . 13 25 26 . 3 10 7 19 36 6 3 21 15 3 96 8 9 38 19 31 7 4 13 5 28 32 44 70 125 68 42 Power 69 | 1 2 . 3 . . 1 1 3 . . 1 . 1 5 1 1 . 3 1 6 1 . 4 1 . 2 . 2 . 3 1 2 1 11 5 6 Engine 20 | 1 2 . 3 . . 1 1 3 . . 1 . 1 3 . . . . . 2 1 . . . . . . . . . . . . 1 . . Core 13 | . . . . . . . . . . . . . . 2 1 1 . 2 . 4 . . 3 . . . . . . . . . . . . . Reactor 36 | . . . . . . . . . . . . . . . . . . 1 1 . . . 1 1 . 2 . 2 . 3 1 2 1 10 5 6 Propulsion 48 | 2 10 2 5 1 . 2 4 4 . . . . . . . . 1 . . 2 . . . . 1 . . . . . 2 . 1 1 2 8 Treads 1 | . . . . . . . . . . . . . . . . . . . . . . . . . . . . . . . . . . . . 1 Leg . | . . . . . . . . . . . . . . . . . . . . . . . . . . . . . . . . . . . . . Wheel 46 | 2 10 2 5 1 . 2 4 4 . . . . . . . . 1 . . 2 . . . . 1 . . . . . 2 . 1 1 2 6 Hover . | . . . . . . . . . . . . . . . . . . . . . . . . . . . . . . . . . . . . . Flight 1 | . . . . . . . . . . . . . . . . . . . . . . . . . . . . . . . . . . . . 1 Utility 472 | 1 7 . 6 . . 5 8 11 . 1 3 5 12 22 2 1 14 5 2 66 6 5 19 9 19 5 4 6 3 21 21 37 57 55 19 15 Device 336 | . 6 . 1 . . 3 4 5 . . 2 3 6 16 . 1 11 4 2 42 3 4 9 5 17 3 4 1 3 16 17 31 45 43 15 14 Storage 9 | 1 1 . 2 . . . . . . . . . . 1 . . . . . . . . . 1 . . . 1 . . . . . 1 1 . Processor 21 | . . . . . . . . 3 . 1 . . 2 . . . . 1 . 4 . . 4 1 . . . . . . . . . 3 2 . Hackware 2 | . . . . . . . 1 . . . . . . . . . . . . . . . . . . . . . . 1 . . . . . . Protection 103 | . . . 3 . . 2 3 3 . . 1 2 4 5 2 . 3 . . 20 3 1 6 2 2 2 . 4 . 4 4 6 12 8 1 . Artifact 1 | . . . . . . . . . . . . . . . . . . . . . . . . . . . . . . . . . . . . 1 Weapon 301 | 2 11 . 10 1 . 5 12 8 . 2 6 2 6 9 3 1 6 7 . 22 1 4 15 9 11 . . 5 2 4 8 5 11 58 42 13 Energy Gun 242 | 1 10 . 8 1 . 4 10 6 . 1 3 1 4 7 2 1 5 6 . 21 1 4 13 8 9 . . 5 1 4 7 3 7 41 35 13 Energy Cannon 18 | . . . . . . . . . . . . . . . . . 1 . . . . . . . 1 . . . . . 1 1 1 11 2 . Ballistic Gun 3 | 1 1 . . . . . . . . . . . . . 1 . . . . . . . . . . . . . . . . . . . . . Ballistic Cannon . | . . . . . . . . . . . . . . . . . . . . . . . . . . . . . . . . . . . . . Launcher 33 | . . . 2 . . 1 1 1 . 1 2 1 2 2 . . . . . 1 . . 1 1 1 . . . 1 . . 1 3 6 5 . Special Weapon 3 | . . . . . . . . . . . 1 . . . . . . 1 . . . . 1 . . . . . . . . . . . . . Impact Weapon 2 | . . . . . . . 1 1 . . . . . . . . . . . . . . . . . . . . . . . . . . . . Slashing Weapon . | . . . . . . . . . . . . . . . . . . . . . . . . . . . . . . . . . . . . . Piercing Weapon . | . . . . . . . . . . . . . . . . . . . . . . . . . . . . . . . . . . . . . Special Melee Weapon . | . . . . . . . . . . . . . . . . . . . . . . . . . . . . . . . . . . . . . Unidentified Prototypes 56 | . 2 . 1 . . . 2 1 . . . . 2 3 3 . 2 2 . 2 . . 5 5 2 . . 4 . 2 8 2 3 2 3 . Corrupted Parts 1 | . . . . . . . . . . . . . . . . . . . . . . . . 1 . . . . . . . . . . . . System Corruption 5 | . . . . . . . . . . . . . . . . . . . . . . . . 5 . . . . . . . . . . . . Parts Lost 122 | . . . 6 2 . 6 8 1 . . . . 2 2 . . 4 . . 19 2 1 4 . 1 . . . . 1 . 3 8 8 11 33 Power 23 | . . . 1 . . 1 . 1 . . . . . 1 . . . . . 4 . . . . . . . . . . . 2 2 3 1 7 Propulsion 12 | . . . 1 1 . 1 4 . . . . . . . . . 1 . . 1 . . . . . . . . . . . . . . 1 2 Utility 40 | . . . 1 . . 2 2 . . . . . 1 . . . 2 . . 5 1 1 2 . . . . . . 1 . . 4 2 3 13 Weapon 47 | . . . 3 1 . 2 2 . . . . . 1 1 . . 1 . . 9 1 . 2 . 1 . . . . . . 1 2 3 6 11 Highest Loss Streak 11 | . . . 4 1 . 2 6 1 . . . . 1 1 . . 4 . . 6 2 1 4 . 1 . . . . 1 . 1 3 5 3 11 To Critical Strikes . | . . . . . . . . . . . . . . . . . . . . . . . . . . . . . . . . . . . . . Average Slot Usage (%) 91 | . 97 100 99 99 100 99 98 96 92 92 91 92 92 92 92 93 92 94 94 92 94 94 93 93 90 88 89 64 89 88 90 89 84 85 88 80 Engine 3 | . 13 14 11 11 11 11 8 6 7 7 7 7 13 8 6 . . . . 1 5 5 2 . . . . . . . . . . . . . Core 1 | . . . . . . . . . . . . . . 3 6 12 13 10 5 6 5 5 6 2 . . . . . . . . . . . . Reactor 5 | . . . . . . . . . . . . . . . . . . . 5 1 . . 1 7 10 10 10 10 10 12 14 11 7 10 14 12 Wheel 9 | . 27 28 21 21 22 22 16 11 7 7 7 7 6 6 6 6 6 5 5 5 5 5 5 5 4 5 5 5 5 4 8 8 8 6 4 5 Device 16 | . 12 14 11 11 11 11 18 14 15 15 22 22 17 19 13 15 18 23 23 18 17 17 16 17 16 14 15 15 15 18 14 20 19 12 16 16 Storage 6 | . 14 14 11 11 11 11 9 7 7 7 7 7 6 6 6 6 6 5 5 5 5 5 5 5 5 5 5 5 5 4 4 4 4 4 5 6 Processor 16 | . . . . . . . . 22 23 23 23 23 20 20 20 20 19 11 11 20 23 23 22 23 21 21 21 21 21 19 19 17 17 21 18 12 Protection 5 | . . . 10 11 11 10 9 . . . . . 1 . 6 4 1 11 11 6 5 5 4 4 5 5 5 5 5 3 3 4 5 7 7 5 Energy Gun 23 | . 25 28 32 33 33 32 26 22 23 22 22 22 25 25 25 26 25 22 23 22 23 23 22 22 25 26 26 1 25 23 22 20 20 19 17 17 Naked Turns . | . . . . . . . . . . . . . . . . . . . . . . . . . . . . . . . . . . . . . Heaviest Build 286 | 14 30 30 105 105 104 106 107 105 99 104 115 107 122 128 124 126 134 139 139 147 138 138 140 144 168 163 163 163 159 183 199 209 225 268 286 280 Greatest Support 70 | 26 26 24 24 24 24 24 22 28 28 28 28 28 28 28 28 28 28 28 28 28 28 28 28 28 28 28 28 28 28 28 36 36 36 36 36 70 Greatest Overweight (x) 13 | . 9 2 4 8 4 4 10 8 3 3 4 3 4 4 4 4 4 4 4 5 4 4 4 5 5 5 5 5 5 6 6 5 6 11 10 13 Average Overweight (x) 4 | . . 1 3 4 4 4 5 3 3 3 3 3 4 3 4 4 4 4 4 4 4 4 4 4 5 5 5 4 5 5 5 5 5 7 7 7 Largest Inventory Capacity 27 | 8 15 15 25 25 25 25 25 25 25 25 25 25 25 25 25 25 25 25 25 25 25 25 25 25 25 25 25 25 25 25 25 25 25 27 27 27 Average Capacity 24 | 7 12 15 23 25 25 25 25 25 25 25 25 25 25 25 25 25 25 25 25 25 25 25 25 25 25 25 25 25 25 25 25 25 25 25 27 26 Most Carried 27 | 2 15 15 25 25 25 25 25 25 25 25 25 25 25 25 25 25 25 22 18 25 25 25 25 25 25 25 25 25 25 25 25 25 25 25 25 27 Average Carried 22 | . 10 15 21 23 25 23 24 24 24 25 24 25 24 24 24 24 24 16 17 23 24 24 24 24 24 24 25 24 25 24 24 24 24 21 18 22 Final Capacity 27 | 8 15 15 25 25 25 25 25 25 25 25 25 25 25 25 25 25 25 25 25 25 25 25 25 25 25 25 25 25 25 25 25 25 25 27 27 7 Final Carried 25 | 2 15 15 23 25 25 23 25 24 25 25 25 25 24 25 25 25 23 17 18 25 25 25 25 25 25 25 25 25 25 25 25 25 22 25 24 7 Class Distribution -------------------- 26% | Scavenger-Gunner 20% | Scavenger-Skirmisher 12% | Skirmisher 8% | Scavenger-Tank 7% | Gunner 6% | Tank 6% | Mutant 5% | Scavenger-Mutant Dominant Class ---------------- Mutant | -10/Materials Mutant | -10/Mines Tank | -9/Materials Tank | -9/Mines Tank | -9/Exiles Scavenger-Tank | -8/Mines Scavenger-Tank | -8/Materials Scavenger-Gunner | -7/Factory Gunner | -7/Lower Caves Gunner | -7/Lower Caves Scavenger-Gunner | -7/Zion Scavenger-Gunner | -6/Proximity Caves Scavenger-Gunner | -6/Factory Scavenger-Gunner | -6/Extension Scavenger-Gunner | -6/Cetus Commander-Gunner | -6/Archives Commander-Gunner | -6/Hub_04(d) Scavenger-Skirmisher | -5/Factory Scavenger-Tank | -5/Waste Scavenger-Skirmisher | -5/Factory Scavenger-Skirmisher | -5/Upper Caves Scavenger-Skirmisher | -5/Upper Caves Scavenger-Skirmisher | -5/Warlord Skirmisher | -4/Proximity Caves Skirmisher | -4/Factory Skirmisher | -4/Upper Caves Skirmisher | -4/Upper Caves Mutant | -4/Zhirov Skirmisher | -3/Proximity Caves Skirmisher | -3/Research Scavenger-Skirmisher | -3/Testing Scavenger-Skirmisher | -2/Research Skirmisher | -2/Quarantine Scavenger-Gunner | -2/Section 7 Scavenger-Gunner | -1/Access Scavenger-Gunner | -1/Command Resources | -11 -10 -10 -9 -9 -9 -8 -8 -7 -7 -7 -7 -6 -6 -6 -6 -6 -6 -5 -5 -5 -5 -5 -5 -4 -4 -4 -4 -4 -3 -3 -3 -2 -2 -2 -1 -1 ----------- Run | Jun Mat Min Mat Min Exi Min Mat Fac Low Low Zio Pro Fac Ext Cet Arc Hub Fac Was Fac Upp Upp War Pro Fac Upp Upp Zhi Pro Res Tes Res Qua Sec Acc Com Matter Collected 12559 | 238 379 37 286 20 . 164 275 210 56 53 119 84 254 439 60 20 120 84 197 1058 177 194 415 150 462 41 100 . 133 453 306 446 1023 2373 1718 415 Remotely . | . . . . . . . . . . . . . . . . . . . . . . . . . . . . . . . . . . . . . Salvage Created 53020 | . 738 37 1829 129 . 896 1512 729 . 79 . 282 948 1139 116 . 391 326 941 3908 314 523 1361 216 1220 . 59 . 238 395 956 1609 3336 11372 9702 7719 Parts 1435 | . 48 5 109 6 . 35 74 34 . 5 . 14 33 41 5 . 16 11 5 122 10 23 23 6 44 . 4 . 7 15 44 56 115 201 241 83 Haulers Intercepted 20 | . 2 . 6 . . . 3 1 . . . . 1 . . . . 1 . 2 . . . . 1 . . . . . . 2 1 . . . Recyclers Shooed 16 | . 4 1 3 . . 1 1 . . . . . 2 1 . . . . . 1 . . . . . . . . . . . . . . 1 1 Parts Field Recycled . | . . . . . . . . . . . . . . . . . . . . . . . . . . . . . . . . . . . . . Retrieved Matter . | . . . . . . . . . . . . . . . . . . . . . . . . . . . . . . . . . . . . . Parts Self-Destructed 88 | . . . . . . . . . 10 10 2 22 . . . . . . . . 8 21 . 6 . . 4 . 5 . . . . . . . Prevented 3 | . . . . . . . . . . . . . . . . . . . . . . . . . . . 3 . . . . . . . . . Kills | -11 -10 -10 -9 -9 -9 -8 -8 -7 -7 -7 -7 -6 -6 -6 -6 -6 -6 -5 -5 -5 -5 -5 -5 -4 -4 -4 -4 -4 -3 -3 -3 -2 -2 -2 -1 -1 ------- Run | Jun Mat Min Mat Min Exi Min Mat Fac Low Low Zio Pro Fac Ext Cet Arc Hub Fac Was Fac Upp Upp War Pro Fac Upp Upp Zhi Pro Res Tes Res Qua Sec Acc Com Combat Hostiles Destroyed 765 | . 12 . 35 4 . 20 20 6 . 3 . 10 18 12 2 . 2 1 4 53 4 11 20 2 20 . 1 . 8 4 12 14 58 154 165 90 Guns 540 | . 10 . 26 4 . 13 14 6 . 2 . 7 7 8 2 . 1 1 1 42 4 11 16 2 15 . 1 . 3 3 11 12 25 118 91 84 AOE 177 | . . . 7 . . 2 4 . . 1 . 3 10 2 . . 1 . . . . . 2 . 3 . . . 5 . . . 33 34 70 . Classes Destroyed 28 | . 7 . 5 2 . 1 1 1 . . . 1 1 1 . . . . 1 . . . 2 . . . . . . . 1 1 2 1 . . Worker 42 | . 5 1 1 . . 2 5 3 . . . . 2 . . . 4 1 . 3 . . . . 1 . . . . . 1 1 5 2 2 3 Builder 21 | . 2 1 2 . . . 2 2 . . . . 2 . . . . . . . . . . . 2 . . . . . . . 2 2 4 . Tunneler 3 | . . . 1 . . 1 . . . . . . . . . . . . . . . . . . 1 . . . . . . . . . . . Hauler 20 | . 2 . 6 . . . 3 1 . . . . 1 . . . . 1 . 2 . . . . 1 . . . . . . 2 1 . . . Recycler 31 | . . . 4 . . 1 2 3 . . . . 1 4 . . . 1 . 4 . . . . . . . . . . . 3 . 1 2 5 Carrier 1 | . . . . . . . . . . . . . . . . . . . . . . . . . . . . . . . . . . 1 . . Mechanic 26 | . 1 . 1 . . . . . . . . . . . . . . . . 1 . . 1 . . . . . . . . . 1 5 13 3 Operator 4 | . . . 1 . . . 1 . . . . . . . . . . . . . . . . . . . . . . . . 1 1 . . . Drone 5 | . . . . . . . . . . . . 1 . . . . . . . . . . . 2 . . . . 2 . . . . . . . Watcher 30 | . 3 . 2 . . . 3 1 . . . . . 2 . . . 1 . 7 . . . . . . . . . 1 2 2 1 3 2 . Swarmer 55 | . 3 . 11 . . 7 . . . 2 . 6 . 4 . . . . . 6 . 5 . . 1 . . . 1 . . 4 . . 5 . Saboteur 31 | . . . . . . . . . . . . . . . . . . . . . . . . . . . . . . . . . 6 12 10 3 Grunt 332 | . 9 . 13 2 . 10 11 3 . 1 . 2 11 4 1 . 1 . . 28 4 6 6 . 6 . . . 5 . 3 . 35 58 62 51 Brawler 54 | . . . . 1 . 2 . . . . . . 1 . . . . . . . . . 4 . 1 . . . . . . . 4 11 19 11 Duelist 48 | . . . 3 . . . . . . . . . . . . . . . . 1 . . 2 . 2 . . . . . . . 1 14 18 7 Protector 16 | . . . . . . . . . . . . . 1 . . . . . . . . . . . . . . . . . . . 1 3 8 3 Researcher 3 | . . . . . . . . . . . . . . . . . . . . . . . . . . . . . . . . . 1 2 . . Sentry 29 | . . . 8 . . . 4 . . . . 1 3 2 . . 1 . . 2 . . . . . . . . . 3 . 1 . 4 . . Demolisher 1 | . . . . 1 . . . . . . . . . . . . . . . . . . . . . . . . . . . . . . . . Specialist 10 | . . . . . . . 4 . . . . . . . . . . . . 2 . . 1 . . . . . . . 1 2 . . . . Hunter 31 | . . . . . . 1 1 1 . . . . . . . . . . . 3 . . 2 . . . . . . . 2 2 4 10 3 2 Programmer 93 | . . . . . . . . 2 . . . . 2 . . . . 1 . 11 . . . . 10 . 1 . . 1 5 3 7 22 23 5 Heavy 3 | . . . . . . . . . . . . . . . . . . . . . . . . . . . . . . . . 2 . . 1 . Behemoth 3 | . . . . . . . . . . . . . . 2 . . . . . . . . . . . . . . . . . . . 1 . . Compactor 4 | . . . . . . . . . . . . . . . . . . . 4 . . . . . . . . . . . . . . . . . Cetus Guard 1 | . . . . . . . . . . . . . . . 1 . . . . . . . . . . . . . . . . . . . . . S7 Guard 2 | . . . . . . . . . . . . . . . . . . . . . . . . . . . . . . . . . . 2 . . Enhanced Grunt 2 | . . . . . . . . . . . . . . . . . 2 . . . . . . . . . . . . . . . . . . . Investigator 6 | . . . . . . . . . . . . . . . . . . . . . . . . . . . . . . . . . . 1 3 2 Striker 26 | . . . . . . . . . . . . . . . . . . . . . . . 1 . . . . . . . . . . 10 10 5 Executioner 18 | . . . . . . . . . . . . . . . . . . . . . . . 4 . . . . . . . . . . 5 6 3 Alpha 7 3 | . . . . . . . . . . . . . . . . . . . . . . . . . . . . . . . 1 . . 2 . . Best Kill Streak 41 | . 5 1 10 3 . 5 14 4 . 2 . 3 12 5 1 . 4 2 3 10 4 5 5 1 4 . 1 . 5 2 3 4 16 41 30 29 Combat Bots Only 38 | . 3 . 6 3 . 4 8 2 . 2 . 3 10 3 1 . 1 1 3 9 4 5 5 1 4 . 1 . 5 2 3 4 14 38 19 24 Max Kills in Single Turn 7 | . 2 1 4 1 . 2 2 2 . 1 . 3 6 2 1 . 3 1 1 2 1 3 2 1 3 . 1 . 2 1 2 2 6 4 7 3 Gunslinging 2 | . . . . . . 1 . . . . . 1 . . . . . . . . . 2 . . . . . . . . 1 1 . 1 1 2 Exploded 7 | . . . 4 . . 2 2 . . 1 . 3 4 2 . . 1 . . . . . 2 . 3 . . . 2 . . . 6 3 7 . Melee . | . . . . . . . . . . . . . . . . . . . . . . . . . . . . . . . . . . . . . Uniques/NPCs Destroyed . | . . . . . . . . . . . . . . . . . . . . . . . . . . . . . . . . . . . . . Combat | -11 -10 -10 -9 -9 -9 -8 -8 -7 -7 -7 -7 -6 -6 -6 -6 -6 -6 -5 -5 -5 -5 -5 -5 -4 -4 -4 -4 -4 -3 -3 -3 -2 -2 -2 -1 -1 -------- Run | Jun Mat Min Mat Min Exi Min Mat Fac Low Low Zio Pro Fac Ext Cet Arc Hub Fac Was Fac Upp Upp War Pro Fac Upp Upp Zhi Pro Res Tes Res Qua Sec Acc Com Damage Taken 36839 | . 267 . 943 301 . 972 945 508 . 44 . 208 907 335 47 . 961 83 . 3866 186 685 1410 . 812 . 23 . 25 131 669 789 2857 5811 5218 7836 Core 3660 | . 96 . 99 129 . 105 205 64 . 12 . 24 122 82 . . 57 44 . 243 . 57 234 . 61 . . . . 23 22 45 249 334 453 900 Absorbed by Shields 20246 | . . . . . . . . . . . . . . 24 19 . . . . . . . 67 . . . . . . . 356 759 2770 5115 5303 5833 Reduced by Siege Mode 367 | . . . . . . . . . . . . . . . . . . . . . . . . . . . . . . . . . . . . 367 Redirected to Shielding 238 | . . . . . . . . . . . . . . . . . . . . . . . . . . . . . . . . 48 190 . . . Regen/Repaired (Parts) 12272 | . 57 . 88 . . . 97 . . . 594 . . . . . . . . 552 . . 246 . 729 . . . . . . . . 5269 3699 941 Core Remaining (%) 65 | 100 . 61 . . . 16 62 . . . . 85 . . . . 69 . . . . . . 42 . . . . 94 . 96 . . 25 . . Volleys Fired 1612 | . 67 8 95 11 . 54 75 23 . 9 . 13 26 29 2 . 15 12 7 148 9 16 48 29 48 2 8 . 10 9 50 52 74 294 195 174 Largest 5 | . 2 2 3 3 . 3 3 3 . 3 . 3 4 4 4 . 4 4 4 4 4 4 4 4 5 1 5 . 5 5 5 5 5 5 5 5 Hottest 494 | . 115 100 168 168 . 181 175 171 . 171 . 171 226 226 226 . 245 252 252 300 300 288 312 318 344 78 283 . 283 308 321 377 390 482 488 494 Shots Fired 5461 | . 132 17 265 33 . 159 217 67 . 21 . 37 74 99 8 . 24 33 27 514 36 56 166 41 187 2 12 . 26 37 172 194 279 1080 761 685 Gun 5292 | . 132 17 259 33 . 158 213 66 . 18 . 36 68 94 8 . 24 32 27 514 36 56 162 41 184 2 12 . 23 37 172 187 265 1011 720 685 Cannon 60 | . . . . . . . . . . . . . . . . . . . . . . . . . . . . . . . . 5 2 47 6 . Launcher 107 | . . . 6 . . 1 4 1 . 3 . 1 6 5 . . . . . . . . 3 . 3 . . . 3 . . 2 12 22 35 . Special 2 | . . . . . . . . . . . . . . . . . . 1 . . . . 1 . . . . . . . . . . . . . Kinetic 14 | . 14 . . . . . . . . . . . . . . . . . . . . . . . . . . . . . . . . . . . Thermal 4872 | . 118 17 259 33 . 158 213 66 . 18 . 36 68 94 8 . 24 32 27 514 36 56 162 41 184 2 12 . 23 37 172 192 267 746 660 597 Explosive 102 | . . . 6 . . 1 4 1 . 3 . 1 6 1 . . . . . . . . 3 . 3 . . . 3 . . 2 12 22 34 . Electromagnetic 4 | . . . . . . . . . . . . . . 4 . . . . . . . . . . . . . . . . . . . . . . Slashing 466 | . . . . . . . . . . . . . . . . . . . . . . . . . . . . . . . . . . 312 66 88 Robot Hit Streak 110 | . 10 11 34 8 . 23 16 17 . 8 . 12 29 26 5 . 14 35 8 31 13 20 21 25 28 . 6 . 4 11 19 26 17 110 30 41 Robot Miss Streak 7 | . 5 2 5 3 . 4 4 4 . 1 . 3 2 2 . . . 1 1 6 1 3 3 . 3 . . . 7 1 4 2 3 5 2 3 Penetration Max 1 | . . . . . . . . . . . . . . . . . . . . . . . . . . . . . . . . . . 1 1 1 Secondary Targets 171 | . . . . 1 . 3 4 . . . . 3 2 2 . . . . . 8 . 4 1 . 2 . . . . 1 3 2 10 62 32 31 Max Gunslinging Chain 2 | . . . . 1 . 1 1 . . . . 1 1 1 . . . . . 1 . 2 1 . 1 . . . . 1 2 1 1 2 1 2 Shots Hit Robots 3847 | . 93 10 173 24 . 108 143 39 . 13 . 24 51 63 5 . 9 23 22 370 26 40 115 5 106 . 2 . 8 24 88 125 183 799 584 572 Core Hits 2433 | . 35 3 82 9 . 42 71 22 . 6 . 16 57 39 4 . 14 7 9 181 12 24 73 5 51 . 2 . 14 13 36 56 161 499 493 397 Critical Kills 44 | . . . . . . . . . . . . . . . . . . . . . . . . . . . . . . . . . 4 12 15 13 Critical Parts Destroyed 41 | . . . . . . . . . . . . . . . . . . . . . . . . . . . . . . . . . 4 12 11 14 Critical Strikes 265 | . 8 1 16 2 . 6 5 2 . . . 1 6 3 . . . 2 2 24 . 2 15 1 6 . 1 . 1 . . 4 14 55 43 45 Burn 150 | . 8 1 16 2 . 6 5 2 . . . 1 6 3 . . . 2 2 24 . 2 15 1 6 . 1 . 1 . . 4 5 12 14 11 Destroy 92 | . . . . . . . . . . . . . . . . . . . . . . . . . . . . . . . . . 9 27 29 27 Sever 23 | . . . . . . . . . . . . . . . . . . . . . . . . . . . . . . . . . . 16 . 7 Melee Attacks 4 | . . . . . . . 3 1 . . . . . . . . . . . . . . . . . . . . . . . . . . . . Impact 4 | . . . . . . . 3 1 . . . . . . . . . . . . . . . . . . . . . . . . . . . . Slashing . | . . . . . . . . . . . . . . . . . . . . . . . . . . . . . . . . . . . . . Piercing . | . . . . . . . . . . . . . . . . . . . . . . . . . . . . . . . . . . . . . Sneak Attacks . | . . . . . . . . . . . . . . . . . . . . . . . . . . . . . . . . . . . . . Combat Hostiles . | . . . . . . . . . . . . . . . . . . . . . . . . . . . . . . . . . . . . . Follow-up Attacks . | . . . . . . . . . . . . . . . . . . . . . . . . . . . . . . . . . . . . . Damage Inflicted 140696 | . 1288 125 3068 349 . 1790 2673 855 . 378 . 680 3077 1641 118 . 1013 486 456 8085 526 792 3262 180 3525 . 55 . 949 624 2509 3598 12643 34778 32238 18935 Guns 101673 | . 1286 125 2384 349 . 1691 2202 855 . 266 . 458 1040 1343 118 . 203 486 456 8085 526 792 2602 180 2857 . 55 . 148 624 2509 3469 5090 26961 15578 18935 Cannons . | . . . . . . . . . . . . . . . . . . . . . . . . . . . . . . . . . . . . . Explosions 38998 | . . . 684 . . 99 471 . . 112 . 222 2037 292 . . 810 . . . . . 660 . 668 . . . 801 . . 129 7553 7800 16660 . Melee . | . . . . . . . . . . . . . . . . . . . . . . . . . . . . . . . . . . . . . Ramming 25 | . 2 . . . . . . . . . . . . 6 . . . . . . . . . . . . . . . . . . . 17 . . Kinetic 104 | . 104 . . . . . . . . . . . . . . . . . . . . . . . . . . . . . . . . . . . Thermal 85859 | . 1182 125 2384 349 . 1691 2202 855 . 266 . 458 1932 1434 118 . 203 486 456 8085 526 792 2602 180 2857 . 55 . 148 624 2509 3469 5090 14900 14572 15309 Explosive 37166 | . . . 684 . . 99 471 . . 112 . 222 1145 162 . . . . . . . . 660 . 668 . . . 801 . . 129 7553 7800 16660 . Electromagnetic 849 | . . . . . . . . . . . . . . 39 . . 810 . . . . . . . . . . . . . . . . . . . Impact . | . . . . . . . . . . . . . . . . . . . . . . . . . . . . . . . . . . . . . Slashing 16693 | . . . . . . . . . . . . . . . . . . . . . . . . . . . . . . . . . . 12061 1006 3626 Piercing . | . . . . . . . . . . . . . . . . . . . . . . . . . . . . . . . . . . . . . Highest Corruption 26 | . 1 1 . . . . 2 . . . . . 1 1 1 1 3 . 17 20 20 20 20 5 3 3 3 3 3 . 3 1 5 26 . . Average Corruption 8 | . 1 1 . . . . 2 . . . . . 1 1 1 1 1 . 11 15 20 20 20 5 1 3 3 3 3 . 2 1 2 18 . . Corruption Purged 5 | . . . . . . . . . . . . . . . . . . . . 5 . . . . . . . . . . . . . . . . Corruption Blocked 1 | . . . . . . . . . . . . . . . . . . . . . . . 1 . . . . . . . . . . . . . Effects 626 | . 8 4 . . . . 14 . . . . . 1 14 3 . 7 . 7 158 25 59 3 . 16 7 16 3 17 . 12 1 30 221 . . Message Errors 149 | . 2 . . . . . 6 . . . . . . 1 1 . 2 . 1 42 8 16 1 . 4 3 5 1 5 . 1 . 8 42 . . Matter Fused 129 | . 2 2 . . . . 2 . . . . . 1 4 . . 2 . 1 34 4 14 . . 3 2 3 . 1 . 2 . 6 46 . . Heat Flow Errors 70 | . . 1 . . . . 3 . . . . . . 2 1 . 1 . 1 13 4 8 . . 5 1 2 1 . . 3 . 4 20 . . Energy Discharges 62 | . 2 . . . . . 1 . . . . . . 2 1 . 1 . 1 12 2 9 . . . 1 3 . 1 . 2 . 2 22 . . Parts Rejected 7 | . . . . . . . . . . . . . . . . . . . . 3 . . . . . . . . . . . . 2 2 . . Parts Fused 7 | . . . . . . . . . . . . . . . . . . . . 2 1 . . . . . . . 1 . . . . 3 . . Data Loss (minor) 68 | . 1 . . . . . 1 . . . . . . 2 . . . . 1 17 2 4 1 . 1 . 3 . 7 . . . 4 24 . . Data Loss (major) 34 | . 1 . . . . . 1 . . . . . . 1 . . . . 1 8 1 3 1 . 1 . . . 1 . . . 1 14 . . Misfires 21 | . . 1 . . . . . . . . . . . 2 . . 1 . . 7 1 3 . . 1 . . . . . 2 . . 3 . . Alerts 17 | . . . . . . . . . . . . . . . . . . . . 8 1 . . . 1 . . 1 1 . 1 . . 4 . . Weapon Failures 62 | . . . . . . . . . . . . . . . . . . . 1 12 1 2 . . . . . . . . 1 1 3 41 . . Overload Shots 47 | . . . . . . . . . . . . . . . . . . . . . . . 1 . 7 2 7 . 3 1 10 11 . 2 3 . Effects 5 | . . . . . . . . . . . . . . . . . . . . . . . . . . . 1 . . . 2 2 . . . . Energy Bleed 2 | . . . . . . . . . . . . . . . . . . . . . . . . . . . . . . . 1 1 . . . . Heat Surge 2 | . . . . . . . . . . . . . . . . . . . . . . . . . . . 1 . . . 1 . . . . . Short Circuit 1 | . . . . . . . . . . . . . . . . . . . . . . . . . . . . . . . . 1 . . . . Overflow Damage 1074 | . . . 7 . . . 5 . . 13 . . 178 12 . . 113 . . . . . 10 . . . . . . . . . 191 277 268 . Projectiles . | . . . . . . . . . . . . . . . . . . . . . . . . . . . . . . . . . . . . . Explosions 1074 | . . . 7 . . . 5 . . 13 . . 178 12 . . 113 . . . . . 10 . . . . . . . . . 191 277 268 . Melee . | . . . . . . . . . . . . . . . . . . . . . . . . . . . . . . . . . . . . . Knockbacks . | . . . . . . . . . . . . . . . . . . . . . . . . . . . . . . . . . . . . . Impact . | . . . . . . . . . . . . . . . . . . . . . . . . . . . . . . . . . . . . . Kinetic . | . . . . . . . . . . . . . . . . . . . . . . . . . . . . . . . . . . . . . Secondary . | . . . . . . . . . . . . . . . . . . . . . . . . . . . . . . . . . . . . . Self-Inflicted Damage 1035 | . 1 . 93 . . . . . . . . . 134 78 . . 96 . . . . . 153 . . . . . . . . . 247 233 . . Shots 17 | . . . 3 . . . . . . . . . 2 2 . . 1 . . . . . 3 . . . . . . . . . 3 3 . . Rammed 3 | . 1 . . . . . . . . . . . . 1 . . . . . . . . . . . . . . . . . . . 1 . . Targets Rammed 3 | . 1 . . . . . . . . . . . . 1 . . . . . . . . . . . . . . . . . . . 1 . . Kicked . | . . . . . . . . . . . . . . . . . . . . . . . . . . . . . . . . . . . . . Crushed . | . . . . . . . . . . . . . . . . . . . . . . . . . . . . . . . . . . . . . Highest Temperature 404 | . 219 216 288 318 . 333 214 189 . 138 . 26 332 136 189 . 120 60 271 344 270 404 276 141 231 170 216 181 108 101 139 204 126 339 98 98 Average Temperature 83 | . 41 42 72 144 . 132 19 54 . 62 . 6 79 38 41 . 69 28 130 84 129 106 81 70 56 90 96 92 45 37 69 76 55 104 77 75 Received Heat Transfer 5425 | . 147 . 264 42 . 360 432 81 . . . 38 330 84 6 . 165 18 . 967 99 295 75 . 103 . . . . 18 4 16 254 395 448 784 Effects 18 | . 1 . 1 . . 3 . . . . . . 2 . . . . . . 3 1 2 2 . . . . . . . . . . 3 . . Shutdowns 2 | . . . . . . . . . . . . . . . . . . . . . . 2 . . . . . . . . . . . . . . Energy Bleed 3 | . 1 . 1 . . . . . . . . . . . . . . . . . 1 . . . . . . . . . . . . . . . Interference 12 | . . . . . . 2 . . . . . . 2 . . . . . . 3 . . 2 . . . . . . . . . . 3 . . Matter Decay 1 | . . . . . . 1 . . . . . . . . . . . . . . . . . . . . . . . . . . . . . . Siege Activations 2 | . . . . . . . . . . . . . . . . . . . . . . . . . . . . . . . . . . . . 2 Total Turns 147 | . . . . . . . . . . . . . . . . . . . . . . . . . . . . . . . . . . . . 147 Longest Duration 136 | . . . . . . . . . . . . . . . . . . . . . . . . . . . . . . . . . . . . 136 Robots Corrupted 2 | . . . . . . . . . . . . . . . . . 2 . . . . . . . . . . . . . . . . . . . Combat Hostiles . | . . . . . . . . . . . . . . . . . . . . . . . . . . . . . . . . . . . . . Parts Fried 4 | . . . . . . . . . . . . . . . . . 4 . . . . . . . . . . . . . . . . . . . Impact Corruptions . | . . . . . . . . . . . . . . . . . . . . . . . . . . . . . . . . . . . . . Robots Melted 56 | . 3 . 4 . . 5 2 . . . . . 2 2 . . . 1 3 13 . . 2 . 2 . . . . 1 1 2 . 3 4 6 Combat Hostiles 48 | . 2 . 2 . . 5 2 . . . . . 1 2 . . . . 3 11 . . 2 . 2 . . . . 1 1 2 . 2 4 6 Parts Melted 410 | . 13 . 18 1 . 12 19 4 . . . 3 15 12 . . . 4 7 57 . 4 17 2 23 . . . 1 1 15 29 5 46 44 58 Heat Transferred 137099 | . 3922 444 7622 1036 . 4514 5192 1739 . 518 . 925 2981 2962 204 . 370 962 999 16647 962 1628 6038 411 4496 . 148 . 296 925 3302 5013 7050 17633 18191 19969 Parts Sabotaged 20 | . . . . . . . . . . . . . . . . . . . . . . . . . . . . . . . . . . 6 3 11 Parts Stolen . | . . . . . . . . . . . . . . . . . . . . . . . . . . . . . . . . . . . . . Parts Stripped . | . . . . . . . . . . . . . . . . . . . . . . . . . . . . . . . . . . . . . Power Chain Reactions 4 | . . . . . . . . . . . . . . 2 . . 2 . . . . . . . . . . . . . . . . . . . Missiles Intercepted . | . . . . . . . . . . . . . . . . . . . . . . . . . . . . . . . . . . . . . Alert | -11 -10 -10 -9 -9 -9 -8 -8 -7 -7 -7 -7 -6 -6 -6 -6 -6 -6 -5 -5 -5 -5 -5 -5 -4 -4 -4 -4 -4 -3 -3 -3 -2 -2 -2 -1 -1 ------- Run | Jun Mat Min Mat Min Exi Min Mat Fac Low Low Zio Pro Fac Ext Cet Arc Hub Fac Was Fac Upp Upp War Pro Fac Upp Upp Zhi Pro Res Tes Res Qua Sec Acc Com Peak Influence 7128 | . 235 63 892 255 . 313 454 139 . . . . 829 662 746 489 976 504 191 996 . . . . 528 . . . . 404 273 787 2079 4079 7128 6607 Initial 4561 | . . 58 1 255 . . 63 7 . . . . 189 405 370 298 100 441 176 133 . . . . 152 . . . . 300 93 153 401 1149 2447 4561 Average 1316 | . 73 37 548 94 . 177 91 53 . . . . 491 488 489 434 329 462 189 519 . . . . 267 . . . . 290 138 355 1076 2668 5144 5614 Maximum Alert Level 5 | . 1 . 3 1 . 1 2 . . . . . 3 2 3 2 3 2 . 3 . . . . 2 . . . . 2 1 3 5 5 5 5 Low Security (%) 30 | 100 98 100 6 68 . 68 83 100 . . . . 50 . . . 40 . 100 16 . . . . 35 . . . . 29 77 6 . . . . Level 1 16 | . 1 . 24 31 . 31 7 . . . . . . 14 10 29 32 . . 26 . . . . 53 . . . . 65 22 72 . . . . Level 2 15 | . . . 40 . . . 8 . . . . . 5 85 69 70 17 100 . 19 . . . . 10 . . . . 4 . 15 27 3 . . Level 3 11 | . . . 28 . . . . . . . . . 44 . 19 . 9 . . 37 . . . . . . . . . . . 5 29 22 . . Level 4 2 | . . . . . . . . . . . . . . . . . . . . . . . . . . . . . . . . . 27 11 . . Level 5 3 | . . . . . . . . . . . . . . . . . . . . . . . . . . . . . . . . . . . 23 30 High Security 18 | . . . . . . . . . . . . . . . . . . . . . . . . . . . . . . . . . 13 63 76 69 Max Security . | . . . . . . . . . . . . . . . . . . . . . . . . . . . . . . . . . . . . . Sterilizations 2 | . . . . . . . . . . . . . . . . . . . . . . . . . . . . . . . . . . 1 1 . Squads Dispatched 219 | . 4 . 8 1 . . 6 4 . . . . 6 2 . . 6 2 . 17 . . . . 9 . . . . 1 5 7 26 37 43 35 Investigation 25 | . 4 . 7 1 . . 1 2 . . . . 1 2 . . . . . 5 . . . . 1 . . . . . . . 1 . . . Extermination 31 | . . . . . . . . 1 . . . . 1 . . . 2 1 . 7 . . . . 3 . . . . 1 3 2 4 4 2 . Reinforcement 24 | . . . . . . . 3 1 . . . . 2 . . . 3 1 . 2 . . . . 1 . . . . . 2 3 3 2 1 . Assault 127 | . . . 1 . . . . . . . . . 1 . . . 1 . . 3 . . . . 1 . . . . . . 2 15 31 37 35 Garrison 12 | . . . . . . . 2 . . . . . 1 . . . . . . . . . . . 3 . . . . . . . 3 . 3 . Intercept . | . . . . . . . . . . . . . . . . . . . . . . . . . . . . . . . . . . . . . Searches Triggered . | . . . . . . . . . . . . . . . . . . . . . . . . . . . . . . . . . . . . . Construction Impeded 6 | . . . . . . . . . . . . . 2 . . . 1 . . . . . . . 1 . . . . . . . . 1 1 . Haulers Reinforced 2 | . . . . . . . . . . . . . . . . . 1 1 . . . . . . . . . . . . . . . . . . Active Scanning Responses . | . . . . . . . . . . . . . . . . . . . . . . . . . . . . . . . . . . . . . Cargo Convoy Interrupts . | . . . . . . . . . . . . . . . . . . . . . . . . . . . . . . . . . . . . . Stealth | -11 -10 -10 -9 -9 -9 -8 -8 -7 -7 -7 -7 -6 -6 -6 -6 -6 -6 -5 -5 -5 -5 -5 -5 -4 -4 -4 -4 -4 -3 -3 -3 -2 -2 -2 -1 -1 --------- Run | Jun Mat Min Mat Min Exi Min Mat Fac Low Low Zio Pro Fac Ext Cet Arc Hub Fac Was Fac Upp Upp War Pro Fac Upp Upp Zhi Pro Res Tes Res Qua Sec Acc Com Distress Signals 34 | . . . 4 . . . 2 . . . . . 1 1 1 . 2 . . 7 . . 1 . 2 . . . 1 . 1 3 1 4 3 . Communications Jammed 113 | . . . . . . . . . . . . . . . . . . . . . . . . . . . . . . . . 24 . 18 . 71 Distress Signals 111 | . . . . . . . . . . . . . . . . . . . . . . . . . . . . . . . . 22 . 18 . 71 Times Spotted 1266 | . 20 . 52 5 . 23 29 11 . 7 . 15 19 30 10 1 12 2 6 82 4 8 91 2 28 . 1 . 5 7 24 30 99 207 267 169 Peak Tracking Total 30 | . 3 . 6 3 . 4 9 3 . 4 . 5 7 5 5 1 6 4 3 6 4 3 19 1 5 . . . 2 2 4 5 14 19 23 30 Tactical Retreats 46 | . . . 3 . . 3 . 1 . . . . 1 . . . 1 . . 6 . . 2 . 4 . . . . . . 1 2 1 17 4 Traps | -11 -10 -10 -9 -9 -9 -8 -8 -7 -7 -7 -7 -6 -6 -6 -6 -6 -6 -5 -5 -5 -5 -5 -5 -4 -4 -4 -4 -4 -3 -3 -3 -2 -2 -2 -1 -1 ------- Run | Jun Mat Min Mat Min Exi Min Mat Fac Low Low Zio Pro Fac Ext Cet Arc Hub Fac Was Fac Upp Upp War Pro Fac Upp Upp Zhi Pro Res Tes Res Qua Sec Acc Com Traps Triggered 33 | . 6 . 3 . . . 1 4 . . . . 3 3 . . 1 1 . 7 . . . . 1 . . . . . . . 1 1 1 . Indirectly . | . . . . . . . . . . . . . . . . . . . . . . . . . . . . . . . . . . . . . Trap Hack Attempts . | . . . . . . . . . . . . . . . . . . . . . . . . . . . . . . . . . . . . . Triggered . | . . . . . . . . . . . . . . . . . . . . . . . . . . . . . . . . . . . . . Disarmed 6 | . 1 . . . . . 5 . . . . . . . . . . . . . . . . . . . . . . . . . . . . . Reprogrammed . | . . . . . . . . . . . . . . . . . . . . . . . . . . . . . . . . . . . . . Reused . | . . . . . . . . . . . . . . . . . . . . . . . . . . . . . . . . . . . . . Traps Extracted . | . . . . . . . . . . . . . . . . . . . . . . . . . . . . . . . . . . . . . Installed . | . . . . . . . . . . . . . . . . . . . . . . . . . . . . . . . . . . . . . Triggered 12 | . . . . . . . . . . . . . . . . . . . . . . . 11 . . . 1 . . . . . . . . . Machines | -11 -10 -10 -9 -9 -9 -8 -8 -7 -7 -7 -7 -6 -6 -6 -6 -6 -6 -5 -5 -5 -5 -5 -5 -4 -4 -4 -4 -4 -3 -3 -3 -2 -2 -2 -1 -1 ---------- Run | Jun Mat Min Mat Min Exi Min Mat Fac Low Low Zio Pro Fac Ext Cet Arc Hub Fac Was Fac Upp Upp War Pro Fac Upp Upp Zhi Pro Res Tes Res Qua Sec Acc Com Machines Disabled 82 | . . . 1 . . . 2 1 . . . . 10 2 1 2 15 . . . . . 1 . 2 . . . . . 7 4 12 17 3 2 Max in Single Turn 13 | . . . 1 . . . 1 1 . . . . 8 1 . . 13 . . . . . 1 . 1 . . . . . 1 1 1 1 1 2 Garrison Access 6 | . . . . . . . 1 1 . . . . 1 . . . . . . . . . . . . . . . . 1 . . 1 . 1 . Phase Generator 1 | . . . . . . . . . . . . . . . . . . . . . . . . . . . . . . . . . . . . 1 Network Hub 1 | . . . . . . . . . . . . . . . . . 1 . . . . . . . . . . . . . . . . . . . Machines Repaired . | . . . . . . . . . . . . . . . . . . . . . . . . . . . . . . . . . . . . . Machines Sabotaged . | . . . . . . . . . . . . . . . . . . . . . . . . . . . . . . . . . . . . . Overloaded Fab Kills . | . . . . . . . . . . . . . . . . . . . . . . . . . . . . . . . . . . . . . Hacking | -11 -10 -10 -9 -9 -9 -8 -8 -7 -7 -7 -7 -6 -6 -6 -6 -6 -6 -5 -5 -5 -5 -5 -5 -4 -4 -4 -4 -4 -3 -3 -3 -2 -2 -2 -1 -1 --------- Run | Jun Mat Min Mat Min Exi Min Mat Fac Low Low Zio Pro Fac Ext Cet Arc Hub Fac Was Fac Upp Upp War Pro Fac Upp Upp Zhi Pro Res Tes Res Qua Sec Acc Com Machines Accessed 69 | . 10 . 11 1 1 . 8 11 2 1 . . 2 5 . . . . . 2 . 1 2 . 1 1 . 4 . 2 1 1 2 . . . Terminals 34 | . 8 . 8 . . . 5 6 . . . . 1 5 . . . . . . . . . . . 1 . . . . . . . . . . Fabricators 5 | . . . . . . . . 2 . . . . 1 . . . . . . 1 . . . . . . . . . . 1 . . . . . Repair Stations 9 | . 1 . 1 . . . 1 2 . . . . . . . . . . . 1 . . . . 1 . . . . . . 1 1 . . . Recycling Units 3 | . 1 . 2 . . . . . . . . . . . . . . . . . . . . . . . . . . . . . . . . . Scanalyzers 2 | . . . . . . . 1 . . . . . . . . . . . . . . . . . . . . . . 1 . . . . . . Garrison Access 4 | . . . . . . . 1 1 . . . . . . . . . . . . . . . . . . . . . 1 . . 1 . . . Total Hacks 211 | . 27 . 35 1 4 . 31 29 8 4 . . 6 8 . . . . . 7 . 1 6 . 6 1 . 17 . 8 2 4 6 . . . Successful 139 | . 17 . 15 1 4 . 23 17 8 4 . . 2 4 . . . . . 4 . 1 6 . 6 1 . 17 . 7 . 1 1 . . . Failed 72 | . 10 . 20 . . . 8 12 . . . . 4 4 . . . . . 3 . . . . . . . . . 1 2 3 5 . . . Catastrophic 10 | . 1 . 6 . . . 1 1 . . . . . . . . . . . 1 . . . . . . . . . . . . . . . . Database Lockouts . | . . . . . . . . . . . . . . . . . . . . . . . . . . . . . . . . . . . . . Manual 159 | . 19 . 29 . . . 15 11 . . . . 5 17 1 . 5 2 . 1 . . . . 12 . . . . 9 . 6 22 5 . . Terminals 105 | . 22 . 28 . . . 24 19 . . . . 3 8 . . . . . . . . . . . 1 . . . . . . . . . . Fabricators 15 | . . . . . . . . 6 . . . . 3 . . . . . . 4 . . . . . . . . . . 2 . . . . . Repair Stations 31 | . 4 . 5 . . . 2 3 . . . . . . . . . . . 3 . . . . 6 . . . . . . 4 4 . . . Recycling Units 3 | . 1 . 2 . . . . . . . . . . . . . . . . . . . . . . . . . . . . . . . . . Scanalyzers 11 | . . . . . . . 4 . . . . . . . . . . . . . . . . . . . . . . 7 . . . . . . Garrison Access 5 | . . . . . . . 1 1 . . . . . . . . . . . . . . . . . . . . . 1 . . 2 . . . Terminal Hacks 78 | . 8 . 6 1 4 . 12 5 8 4 . . 1 4 . . . . . . . 1 6 . . 1 . 17 . . . . . . . . Record 22 | . . . . . 4 . . . 7 4 . . . . . . . . . . . . 1 . . 1 . 5 . . . . . . . . Part Schematic 5 | . 1 . . . . . . . . . . . . . . . . . . . . . . . . . . 4 . . . . . . . . Robot Analysis 6 | . 2 . . . . . . . . . . . . . . . . . . . . . . . . . . 4 . . . . . . . . Prototype ID Bank 14 | . 1 . . . . . 4 . . . . . . . . . . . . . . . 5 . . . . 4 . . . . . . . . Open Door 8 | . . . . 1 . . . . 1 . . . 1 4 . . . . . . . 1 . . . . . . . . . . . . . . Branch Access Points 2 | . . . . . . . 1 1 . . . . . . . . . . . . . . . . . . . . . . . . . . . . Terminal Index 3 | . 1 . 1 . . . . 1 . . . . . . . . . . . . . . . . . . . . . . . . . . . . Fabricator Index 1 | . . . . . . . . 1 . . . . . . . . . . . . . . . . . . . . . . . . . . . . Alert Level 3 | . . . 1 . . . 2 . . . . . . . . . . . . . . . . . . . . . . . . . . . . . Unreport Threat 4 | . . . 2 . . . 2 . . . . . . . . . . . . . . . . . . . . . . . . . . . . . Locate Traps 2 | . 1 . 1 . . . . . . . . . . . . . . . . . . . . . . . . . . . . . . . . . Disarm Traps 2 | . 1 . . . . . 1 . . . . . . . . . . . . . . . . . . . . . . . . . . . . . Hauler Manifests 3 | . . . 1 . . . 1 1 . . . . . . . . . . . . . . . . . . . . . . . . . . . . Zone Layout 3 | . 1 . . . . . 1 1 . . . . . . . . . . . . . . . . . . . . . . . . . . . . Fabricator Hacks 8 | . . . . . . . . 5 . . . . 1 . . . . . . 2 . . . . . . . . . . . . . . . . Network Status 2 | . . . . . . . . 1 . . . . 1 . . . . . . . . . . . . . . . . . . . . . . . Load Schematic 3 | . . . . . . . . 2 . . . . . . . . . . . 1 . . . . . . . . . . . . . . . . Build 3 | . . . . . . . . 2 . . . . . . . . . . . 1 . . . . . . . . . . . . . . . . Repair Station Hacks 19 | . 4 . 3 . . . 2 1 . . . . . . . . . . . 2 . . . . 6 . . . . . . 1 . . . . Scan Component 11 | . 2 . 2 . . . 1 1 . . . . . . . . . . . 1 . . . . 3 . . . . . . 1 . . . . Repair 8 | . 2 . 1 . . . 1 . . . . . . . . . . . . 1 . . . . 3 . . . . . . . . . . . Recycling Unit Hacks . | . . . . . . . . . . . . . . . . . . . . . . . . . . . . . . . . . . . . . Scanalyzer 10 | . . . . . . . 4 . . . . . . . . . . . . . . . . . . . . . . 6 . . . . . . Insert Component 6 | . . . . . . . 2 . . . . . . . . . . . . . . . . . . . . . . 4 . . . . . . Analyze 4 | . . . . . . . 2 . . . . . . . . . . . . . . . . . . . . . . 2 . . . . . . Garrison Access Hacks 4 | . . . . . . . 1 1 . . . . . . . . . . . . . . . . . . . . . 1 . . 1 . . . Seal Access 4 | . . . . . . . 1 1 . . . . . . . . . . . . . . . . . . . . . 1 . . 1 . . . Unauthorized Hacks 20 | . 5 . 6 . . . 4 5 . . . . . . . . . . . . . . . . . . . . . . . . . . . . Terminals 16 | . 4 . 4 . . . 4 4 . . . . . . . . . . . . . . . . . . . . . . . . . . . . Assimilate 1 | . . . . . . . . 1 . . . . . . . . . . . . . . . . . . . . . . . . . . . . Botnet 15 | . 4 . 4 . . . 4 3 . . . . . . . . . . . . . . . . . . . . . . . . . . . . Fabricators 1 | . . . . . . . . 1 . . . . . . . . . . . . . . . . . . . . . . . . . . . . Prioritize 1 | . . . . . . . . 1 . . . . . . . . . . . . . . . . . . . . . . . . . . . . Repair Stations . | . . . . . . . . . . . . . . . . . . . . . . . . . . . . . . . . . . . . . Recycling Units 3 | . 1 . 2 . . . . . . . . . . . . . . . . . . . . . . . . . . . . . . . . . Tunnel 3 | . 1 . 2 . . . . . . . . . . . . . . . . . . . . . . . . . . . . . . . . . Scanalyzers . | . . . . . . . . . . . . . . . . . . . . . . . . . . . . . . . . . . . . . Garrison Access . | . . . . . . . . . . . . . . . . . . . . . . . . . . . . . . . . . . . . . Data Cores Recovered . | . . . . . . . . . . . . . . . . . . . . . . . . . . . . . . . . . . . . . Used . | . . . . . . . . . . . . . . . . . . . . . . . . . . . . . . . . . . . . . Hacking Detections 43 | . 9 . 9 . . . 7 10 . . . . 2 2 . . . . . 1 . . . . 1 . . . . . 1 . 1 . . . Full Trace Events 10 | . 2 . 3 . . . . 2 . . . . 1 . . . . . . 1 . . . . 1 . . . . . . . . . . . Feedback Events 1 | . 1 . . . . . . . . . . . . . . . . . . . . . . . . . . . . . . . . . . . Corruption 1 | . 1 . . . . . . . . . . . . . . . . . . . . . . . . . . . . . . . . . . . Feedback Blocked . | . . . . . . . . . . . . . . . . . . . . . . . . . . . . . . . . . . . . . Robot Schematics Acquired 3 | . . . . . . . . . . . . . . . . . . . . . . . . . . . . . . . . . 1 2 . . Robots Built . | . . . . . . . . . . . . . . . . . . . . . . . . . . . . . . . . . . . . . Authchips . | . . . . . . . . . . . . . . . . . . . . . . . . . . . . . . . . . . . . . Time . | . . . . . . . . . . . . . . . . . . . . . . . . . . . . . . . . . . . . . Total Robot Build Rating . | . . . . . . . . . . . . . . . . . . . . . . . . . . . . . . . . . . . . . Part Schematics Acquired 40 | . 1 . . . . . 2 . . . . . . . . . . . . . . . . . . . . 4 . 2 . . 29 2 . . Parts Built 6 | . . . . . . . . 4 . . . . . . . . . . . 2 . . . . . . . . . . . . . . . . Authchips . | . . . . . . . . . . . . . . . . . . . . . . . . . . . . . . . . . . . . . Time 168 | . . . . . . . . 84 . . . . . . . . . . . 84 . . . . . . . . . . . . . . . . Total Part Build Rating 24 | . . . . . . . . 16 . . . . . . . . . . . 8 . . . . . . . . . . . . . . . . Parts Repaired 8 | . 2 . 1 . . . 1 . . . . . . . . . . . . 1 . . . . 3 . . . . . . . . . . . Time 435 | . 58 . 16 . . . 51 . . . . . . . . . . . . 108 . . . . 202 . . . . . . . . . . . Parts Recycled . | . . . . . . . . . . . . . . . . . . . . . . . . . . . . . . . . . . . . . Recycled Matter . | . . . . . . . . . . . . . . . . . . . . . . . . . . . . . . . . . . . . . Retrieved Matter . | . . . . . . . . . . . . . . . . . . . . . . . . . . . . . . . . . . . . . Retrieved Components . | . . . . . . . . . . . . . . . . . . . . . . . . . . . . . . . . . . . . . Parts Scanalyzed 4 | . . . . . . . 2 . . . . . . . . . . . . . . . . . . . . . . 2 . . . . . . Part Schematics Acquired 4 | . . . . . . . 2 . . . . . . . . . . . . . . . . . . . . . . 2 . . . . . . Parts Damaged 1 | . . . . . . . 1 . . . . . . . . . . . . . . . . . . . . . . . . . . . . . Bothacking | -11 -10 -10 -9 -9 -9 -8 -8 -7 -7 -7 -7 -6 -6 -6 -6 -6 -6 -5 -5 -5 -5 -5 -5 -4 -4 -4 -4 -4 -3 -3 -3 -2 -2 -2 -1 -1 ------------ Run | Jun Mat Min Mat Min Exi Min Mat Fac Low Low Zio Pro Fac Ext Cet Arc Hub Fac Was Fac Upp Upp War Pro Fac Upp Upp Zhi Pro Res Tes Res Qua Sec Acc Com Used RIF Installer . | . . . . . . . . . . . . . . . . . . . . . . . . . . . . . . . . . . . . . Robots Hacked 1 | . . . . . . . . . . . . . . . . . . 1 . . . . . . . . . . . . . . . . . . Non-combat 1 | . . . . . . . . . . . . . . . . . . 1 . . . . . . . . . . . . . . . . . . Combat . | . . . . . . . . . . . . . . . . . . . . . . . . . . . . . . . . . . . . . Robot Hacks Applied 1 | . . . . . . . . . . . . . . . . . . 1 . . . . . . . . . . . . . . . . . . find_chute 1 | . . . . . . . . . . . . . . . . . . 1 . . . . . . . . . . . . . . . . . . Relay Couplers Released 6 | . . . . . . . . . . . . . 3 . . . . . . . . . . . . . . . . . . . 1 . 2 . Machine Destruction 6 | . . . . . . . . . . . . . 3 . . . . . . . . . . . . . . . . . . . 1 . 2 . Fabnet Peak Effective % . | . . . . . . . . . . . . . . . . . . . . . . . . . . . . . . . . . . . . . Robots Rewired 18 | . . . . . . . . 1 . . . . . 9 . . . . . . . . 5 . . . . . . . 3 . . . . . Allies Hacked 2 | . . . . . . . . . . . . . . . . . . . . . . . . . . . . . . . 1 . 1 . . . Hacks Repelled . | . . . . . . . . . . . . . . . . . . . . . . . . . . . . . . . . . . . . . Allies | -11 -10 -10 -9 -9 -9 -8 -8 -7 -7 -7 -7 -6 -6 -6 -6 -6 -6 -5 -5 -5 -5 -5 -5 -4 -4 -4 -4 -4 -3 -3 -3 -2 -2 -2 -1 -1 -------- Run | Jun Mat Min Mat Min Exi Min Mat Fac Low Low Zio Pro Fac Ext Cet Arc Hub Fac Was Fac Upp Upp War Pro Fac Upp Upp Zhi Pro Res Tes Res Qua Sec Acc Com Total Allies 81 | . . 4 . 2 . . . 2 . 2 4 . 1 22 5 . . 3 2 . . . 5 . 3 . . . . 3 3 3 2 1 . 14 Largest Group 9 | . . 4 4 2 . . . 1 . 2 4 4 1 9 8 7 7 3 3 3 . . 5 . 3 . . . . 3 3 3 3 1 . 8 Highest-Rated Group 688 | . . 71 71 50 . . . 34 . 50 148 148 29 383 688 545 545 84 84 84 . . 245 . 233 . . . . 233 270 345 307 26 . 116 Highest-Rated Ally 159 | . . 31 31 31 . . . 34 . 25 38 38 29 159 159 96 96 28 28 28 . . 65 . 103 . . . . 103 103 115 115 26 . 15 Zionite Dispatches 10 | . . . . . . . . . . . . . 1 2 . . 1 1 . . . . . . 2 . . . . 2 . 1 . . . . Heavy 3 | . . . . . . . . . . . . . . 1 . . . . . . . . . . 1 . . . . 1 . . . . . . Light 1 | . . . . . . . . . . . . . . . . . . . . . . . . . . . . . . . . 1 . . . . Recon 1 | . . . . . . . . . . . . . . . . . 1 . . . . . . . . . . . . . . . . . . . Fire 2 | . . . . . . . . . . . . . . 1 . . . 1 . . . . . . . . . . . . . . . . . . Thermal Resupply 1 | . . . . . . . . . . . . . . . . . . . . . . . . . 1 . . . . . . . . . . . Offense Resupply 1 | . . . . . . . . . . . . . 1 . . . . . . . . . . . . . . . . . . . . . . . Defense Resupply 1 | . . . . . . . . . . . . . . . . . . . . . . . . . . . . . . 1 . . . . . . Total Orders 60 | . . . . . . . . 2 . . . . 3 6 . . 24 . . 3 . . 3 . 3 . . . . 4 . 2 6 3 . 1 STAY 7 | . . . . . . . . 1 . . . . 1 1 . . 4 . . . . . . . . . . . . . . . . . . . ROAM 3 | . . . . . . . . . . . . . . . . . 1 . . . . . . . 1 . . . . 1 . . . . . . FOLLOW 7 | . . . . . . . . 1 . . . . . 1 . . 2 . . 1 . . 1 . . . . . . . . . 1 . . . AID 2 | . . . . . . . . . . . . . . . . . . . . . . . 2 . . . . . . . . . . . . . DROP 3 | . . . . . . . . . . . . . 1 . . . . . . . . . . . 1 . . . . 1 . . . . . . EXPLORE 14 | . . . . . . . . . . . . . . . . . 11 . . 1 . . . . . . . . . . . . 1 1 . . RETURN 24 | . . . . . . . . . . . . . 1 4 . . 6 . . 1 . . . . 1 . . . . 2 . 2 4 2 . 1 Ally Attacks 745 | . . . 36 2 . . . 2 . 9 . 36 . 141 32 24 78 . 16 17 . . 71 . 12 . . . . 8 54 70 114 . . 23 Total Damage 27201 | . . . 429 . . . . 73 . 253 . 1152 . 3639 1472 929 3390 . 255 231 . . 2978 . 921 . . . . 597 2506 3304 4630 . . 442 Kills 151 | . . . 9 . . . . . . 3 . 9 . 21 10 4 20 . 2 4 . . 18 . 5 . . . . 3 9 14 19 . . 1 Allies Corrupted 9 | . . . . . . . . . . . . . . . . . 4 . . . . . . . . . . . . 1 1 . 2 . . 1 Allies Melted 1 | . . . . . . . . . . . . . . . . . . . . . . . 1 . . . . . . . . . . . . . Intel | -11 -10 -10 -9 -9 -9 -8 -8 -7 -7 -7 -7 -6 -6 -6 -6 -6 -6 -5 -5 -5 -5 -5 -5 -4 -4 -4 -4 -4 -3 -3 -3 -2 -2 -2 -1 -1 ------- Run | Jun Mat Min Mat Min Exi Min Mat Fac Low Low Zio Pro Fac Ext Cet Arc Hub Fac Was Fac Upp Upp War Pro Fac Upp Upp Zhi Pro Res Tes Res Qua Sec Acc Com Robot Analysis Total 6 | . 2 . . . . . . . . . . . . . . . . . . . . . . . . . . 4 . . . . . . . . Derelict Logs Recovered 13 | . . 1 . 2 . . . . 1 . 2 1 . . . . . . . . 1 2 . 1 . 1 1 . . . . . . . . . Drone Launches 35 | . . . . . . . . . . . . . 1 4 . . 14 . . 1 . . . . 1 . . . . 2 . 2 5 4 . 1 Drone Recoveries 33 | . . . . . . . . . . . . . 1 4 . . 12 . . 1 . . . . 1 . . . . 2 . 2 5 4 . 1 Zionite Intel Received 13 | . . . . . . . . . . . . . . 3 . . 1 . . . . . . . 1 . . . . . . 1 6 1 . . Branch Access 2 | . . . . . . . . . . . . . . . . . . . . . . . . . 1 . . . . . . . 1 . . . Guard Positions 2 | . . . . . . . . . . . . . . . . . 1 . . . . . . . . . . . . . . . 1 . . . Component Stockpiles 2 | . . . . . . . . . . . . . . 1 . . . . . . . . . . . . . . . . . . . 1 . . Prototype Stockpiles 2 | . . . . . . . . . . . . . . 1 . . . . . . . . . . . . . . . . . . 1 . . . Component Schematics 1 | . . . . . . . . . . . . . . . . . . . . . . . . . . . . . . . . . 1 . . . Prototype Schematics 1 | . . . . . . . . . . . . . . . . . . . . . . . . . . . . . . . . . 1 . . . Unaware Analyses 1 | . . . . . . . . . . . . . . . . . . . . . . . . . . . . . . . . 1 . . . . Trap Installations 1 | . . . . . . . . . . . . . . . . . . . . . . . . . . . . . . . . . 1 . . . Active Terminals 1 | . . . . . . . . . . . . . . 1 . . . . . . . . . . . . . . . . . . . . . . Exploration | -11 -10 -10 -9 -9 -9 -8 -8 -7 -7 -7 -7 -6 -6 -6 -6 -6 -6 -5 -5 -5 -5 -5 -5 -4 -4 -4 -4 -4 -3 -3 -3 -2 -2 -2 -1 -1 ------------- Run | Jun Mat Min Mat Min Exi Min Mat Fac Low Low Zio Pro Fac Ext Cet Arc Hub Fac Was Fac Upp Upp War Pro Fac Upp Upp Zhi Pro Res Tes Res Qua Sec Acc Com Turns Passed 45278 | 40 1499 632 1843 1290 222 836 2206 1236 887 600 1381 1042 576 1982 342 519 929 294 161 3638 574 1251 1589 762 1513 591 885 266 957 832 1816 1334 1758 4328 3389 1278 Spaces Moved 19532 | 36 1069 559 988 729 149 369 822 649 582 381 920 641 242 923 120 77 291 127 79 1608 312 590 695 312 513 278 312 145 403 358 688 504 626 1319 921 195 Core 8 | 7 1 . . . . . . . . . . . . . . . . . . . . . . . . . . . . . . . . . . . Treads 16 | . . . . . . . . . . . . . . . . . . . . . . . . . . . . . . . . . . . . 16 Legs . | . . . . . . . . . . . . . . . . . . . . . . . . . . . . . . . . . . . . . Wheels 19506 | 29 1068 559 988 729 149 369 822 649 582 381 920 641 242 923 120 77 291 127 79 1608 312 590 695 312 513 278 312 145 403 358 688 504 626 1319 921 177 Hover . | . . . . . . . . . . . . . . . . . . . . . . . . . . . . . . . . . . . . . Flight . | . . . . . . . . . . . . . . . . . . . . . . . . . . . . . . . . . . . . . Fastest Speed 50 | 50 80 105 105 150 150 145 140 140 145 145 145 145 160 145 160 160 160 160 160 145 160 160 160 160 175 175 175 160 175 175 170 190 170 170 214 140 Average Speed 162 | 82 99 105 139 150 150 145 163 142 145 145 145 145 160 157 160 160 160 160 160 160 160 160 160 174 175 175 175 161 175 184 188 190 191 214 223 232 Slowest Speed 500 | 90 500 120 150 210 150 150 230 200 145 145 160 145 160 160 160 160 160 160 160 175 160 160 160 175 175 175 175 175 175 190 190 190 210 310 250 450 Overloaded Moves . | . . . . . . . . . . . . . . . . . . . . . . . . . . . . . . . . . . . . . Propulsion Burnouts . | . . . . . . . . . . . . . . . . . . . . . . . . . . . . . . . . . . . . . Robots Hopped . | . . . . . . . . . . . . . . . . . . . . . . . . . . . . . . . . . . . . . Cave-ins Triggered . | . . . . . . . . . . . . . . . . . . . . . . . . . . . . . . . . . . . . . Teleports 2 | . . . . . . . . . . . . . . . . . . . . . . . . . . . . . . . . . . 1 1 . Spacefolds 1 | . . . . . . . . . . . . . . . . . . . . . . . . . . . . . . . . . . . . 1 Exploration Rate (%) 53 | 5 96 96 80 98 55 68 38 18 73 60 87 72 8 85 48 70 55 7 71 50 57 68 65 49 16 45 51 60 58 12 55 20 78 75 17 7 Regions Visited 36 Branch Regions 24 Pre-discovered Areas 12 | . 1 1 2 1 1 . . . . . 3 . . . . . . . . . . . . . . . . 3 . . . . . . . . Known Exits Taken 25 | . . . . . . . . 1 1 1 1 1 1 1 1 1 1 . . 1 1 1 1 1 1 1 1 1 1 1 1 1 1 1 . . Unknown Exits Taken 9 | 1 1 1 1 1 1 1 1 . . . . . . . . . . . . . . . . . . . . . . . . . . . 1 . Scrap Searched 25 | . . 1 . 1 . 1 . . 5 1 4 1 . . . . . . . . 3 3 . 1 . 2 1 . 1 . . . . . . . Spaces Dug 138 | . . . 17 . . . 3 8 . 18 . . . 17 . . 1 1 . 5 . . . 12 10 2 5 . 2 1 7 15 . 12 2 . Terrain Destroyed 1150 | . . . 32 . . 8 27 8 . 52 . 11 37 20 . . 166 3 . 6 . . 54 14 54 2 7 . 33 1 9 36 79 42 377 72 Melee 4 | . . . . . . . 3 1 . . . . . . . . . . . . . . . . . . . . . . . . . . . . Projectile 148 | . . . . . . . . . . 1 . . . . . . 4 3 . 6 . . 8 14 10 2 7 . 3 1 9 11 1 37 22 9 AOE 997 | . . . 32 . . 8 24 7 . 51 . 11 37 20 . . 162 . . . . . 46 . 44 . . . 30 . . 25 78 5 355 62 Terrain Rammed . | . . . . . . . . . . . . . . . . . . . . . . . . . . . . . . . . . . . . . Walls Destroyed . | . . . . . . . . . . . . . . . . . . . . . . . . . . . . . . . . . . . . . Machines Disabled . | . . . . . . . . . . . . . . . . . . . . . . . . . . . . . . . . . . . . . Actions | -11 -10 -10 -9 -9 -9 -8 -8 -7 -7 -7 -7 -6 -6 -6 -6 -6 -6 -5 -5 -5 -5 -5 -5 -4 -4 -4 -4 -4 -3 -3 -3 -2 -2 -2 -1 -1 --------- Run | Jun Mat Min Mat Min Exi Min Mat Fac Low Low Zio Pro Fac Ext Cet Arc Hub Fac Was Fac Upp Upp War Pro Fac Upp Upp Zhi Pro Res Tes Res Qua Sec Acc Com Total 29649 | 43 1376 587 1253 901 148 550 1519 903 625 411 965 723 375 1384 266 473 730 197 100 2314 365 861 1069 496 1035 380 640 178 637 509 1104 790 1041 2197 1791 713 Wait 6719 | . 170 17 118 155 . 104 550 182 43 17 26 60 63 271 128 388 384 36 10 407 31 244 237 121 414 86 317 4 220 89 260 170 239 399 507 252 Move 19496 | 35 1068 558 987 728 148 368 821 648 581 380 919 640 241 922 119 76 290 127 78 1607 311 589 694 311 512 277 311 144 402 357 687 503 625 1318 920 194 Hop . | . . . . . . . . . . . . . . . . . . . . . . . . . . . . . . . . . . . . . Pick Up 262 | 2 20 . 20 4 . 5 23 7 1 1 4 1 6 8 3 2 4 1 1 33 3 1 6 2 11 2 . 3 . 5 6 8 7 34 23 5 Fast Attach 219 | 6 18 2 5 . . . 8 11 . . 2 . 1 14 5 1 3 2 1 14 1 . 10 9 5 4 . 12 . 18 16 7 19 15 4 6 Attach 179 | . 1 . 7 2 . 6 8 3 . . 1 . 5 1 . 1 1 7 . 28 2 1 4 1 6 . . 1 . 2 3 6 5 28 25 24 Detach 30 | . . . . . . . . . . . . . . 2 . . 1 2 . 5 . . . 2 1 . . . . . 3 . 2 5 4 3 Swap 504 | . 11 . 12 . . 7 9 12 . 3 7 7 13 21 1 1 17 6 2 54 5 8 24 9 20 3 4 1 5 9 13 31 47 89 41 12 Drop 318 | . 20 2 9 1 . 6 22 11 . 1 6 2 4 22 8 3 7 4 1 18 3 2 22 12 10 6 . 13 . 20 22 12 23 14 7 5 Fire 1612 | . 67 8 95 11 . 54 75 23 . 9 . 13 26 29 2 . 15 12 7 148 9 16 48 29 48 2 8 . 10 9 50 52 74 294 195 174 Melee 4 | . . . . . . . 3 1 . . . . . . . . . . . . . . . . . . . . . . . . . . . . Ram 3 | . 1 . . . . . . . . . . . . 1 . . . . . . . . . . . . . . . . . . . 1 . . Kick . | . . . . . . . . . . . . . . . . . . . . . . . . . . . . . . . . . . . . . Crush . | . . . . . . . . . . . . . . . . . . . . . . . . . . . . . . . . . . . . . Escape Stasis 159 | . . . . . . . . . . . . . 16 24 . . 8 . . . . . . . 8 . . . . . . . . . 65 38 Rewire 144 | . . . . . . . . 5 . . . . . 69 . 1 . . . . . . 24 . . . . . . . 44 1 . . . . Trap . | . . . . . . . . . . . . . . . . . . . . . . . . . . . . . . . . . . . . . Miscellaneous . | . . . . . . . . . . . . . . . . . . . . . . . . . . . . . . . . . . . . . Route ------- -11/Junkyard -10/Materials (discovered 4 exits: *Mat x3 / [*Min]) -10/Mines (discovered 2 exits: *Mat x2) -9/Materials (discovered 4 exits: *Mat x3 / *Min) -9/Mines (discovered 3 exits: *Mat x2 / *Exi) -9/Exiles -8/Mines -8/Materials (discovered 3 exits: *Fac / Sto x2) -7/Factory (discovered 2 exits: *Low x2) -7/Lower Caves -7/Lower Caves -7/Zion -6/Proximity Caves -6/Factory (discovered 6 exits: Fac x2 / Low x2 / *Ext x2) -6/Extension (discovered 2 exits: *Fac / *Cet) -6/Cetus -6/Archives -6/Hub_04(d) (discovered 4 exits: *Fac x4) -5/Factory -5/Waste -5/Factory (discovered 5 exits: *Fac x4 / *Upp) -5/Upper Caves -5/Upper Caves (discovered 2 exits: Fac / *War) -5/Warlord -4/Proximity Caves -4/Factory (discovered 7 exits: Res x4 / *Upp x2 / Arm) -4/Upper Caves -4/Upper Caves -4/Zhirov -3/Proximity Caves -3/Research (discovered 5 exits: Res x3 / *Tes x2) -3/Testing -2/Research (discovered 5 exits: Acc x3 / *Qua x2) -2/Quarantine (discovered 2 exits: *Acc / *Sec) -2/Section 7 -1/Access -1/Command History --------- Turn | Location | Event 6 | -11/Junkyard | Discovered new exit (range 15) 41 | -11/Junkyard | Entered Materials 268 | -10/Materials | Discovered new exit (range 15) 319 | -10/Materials | Repaired Particle Gun 346 | -10/Materials | Repaired Heat Sink 439 | -10/Materials | Discovered new exit (range 16) 689 | -10/Materials | Build established: Mutant 1034 | -10/Materials | Discovered new exit (range 15) 1359 | -10/Materials | Discovered new exit (range 11) 1540 | -10/Materials | Entered Mines 1584 | -10/Mines | Met a Derelict bent on vengeance 1593 | -10/Mines | Discovered new exit (range 16) 1689 | -10/Mines | Discovered new exit (range 4) 1980 | -10/Mines | Assisted by bots powering up and referring to "LRC-V3" 2052 | -10/Mines | Received a Mining Laser from a helpful Derelict 2172 | -10/Mines | Entered Materials 2172 | -9/Materials | Accompanied by 4 allies 2172 | -9/Materials | Evolved 2 slots: Utility x1, Weapon x1 2420 | -9/Materials | Discovered new exit (range 5) 2491 | -9/Materials | Build established: Tank 2883 | -9/Materials | Discovered new exit (range 6) 3255 | -9/Materials | Discovered new exit (range 4) 3536 | -9/Materials | Repaired Arm. Wheel 3624 | -9/Materials | Discovered new exit (range 7) 3772 | -9/Materials | First assault squad dispatched 3852 | -9/Materials | Lost 4 parts (1n1u2w) 4015 | -9/Materials | Entered Mines 4024 | -9/Mines | Found a hidden stash of uninstalled traps 4048 | -9/Mines | Discovered new exit (range 8) 4066 | -9/Mines | Learned location of Storage (-8) 4117 | -9/Mines | Build established: Scavenger-Tank 4195 | -9/Mines | Assembled infested the area 4215 | -9/Mines | Core integrity fell below 50% 4458 | -9/Mines | Learned Materials stockpile data 4513 | -9/Mines | Discovered new exit (range 9) 4523 | -9/Mines | Build established: Tank 4735 | -9/Mines | Met a Derelict shopkeep closing up shop 5044 | -9/Mines | Discovered new exit (range 5) 5305 | -9/Mines | Entered Exiles 5343 | -9/Exiles | Met 8R-AWN 5367 | -9/Exiles | Met EX-HEX 5440 | -9/Exiles | Met EX-DEC 5467 | -9/Exiles | Learned location of Zion (-7) 5511 | -9/Exiles | Discovered new exit (range 14) 5527 | -9/Exiles | Entered Mines 6129 | -8/Mines | Build established: Scavenger-Tank 6224 | -8/Mines | Core integrity fell below 20% 6348 | -8/Mines | Discovered new exit (range 9) 6363 | -8/Mines | Entered Materials 6363 | -8/Materials | Evolved 2 slots: Utility x2 6400 | -8/Materials | Garrison activated, responded to threat 6480 | -8/Materials | Lost 6 parts (2n2u2w) 6487 | -8/Materials | Destroyed 8 combat bots 6828 | -8/Materials | Identified exit to Storage 7248 | -8/Materials | Repaired Cld. Ion Engine 7457 | -8/Materials | Discovered new exit (range 14) 8569 | -8/Materials | Entered Factory 8569 | -7/Factory | Evolved 2 slots: Utility x2 8678 | -7/Factory | Identified exit to Lower Caves 8869 | -7/Factory | Build established: Scavenger-Gunner 9298 | -7/Factory | Fabricated Arm. Huge Wheel (x2) 9523 | -7/Factory | Fabricated Arm. Huge Wheel (x2) 9604 | -7/Factory | Build established: Gunner 9805 | -7/Factory | Entered Lower Caves 10027 | -7/Lower Caves | Learned Factory terminal intel 10087 | -7/Lower Caves | Learned Extension trap positions 10087 | -7/Lower Caves | Learned Armory trap positions 10087 | -7/Lower Caves | Learned Armory stockpile data 10087 | -7/Lower Caves | Learned Research garrison access intel 10504 | -7/Lower Caves | Encountered a Warlord checkpoint 10667 | -7/Lower Caves | Discovered new exit (range 4) 10682 | -7/Lower Caves | Identified exit to Lower Caves 10692 | -7/Lower Caves | Entered another Lower Caves area 10848 | -7/Lower Caves | Encountered a Warlord checkpoint 10902 | -7/Lower Caves | Learned location of 1 exit from Factory 10902 | -7/Lower Caves | Learned 8 Factory zone layouts 10902 | -7/Lower Caves | A Commander dispatched an escort 11266 | -7/Lower Caves | Discovered new exit (range 6) 11273 | -7/Lower Caves | Identified exit to Zion 11292 | -7/Lower Caves | Entered Zion 11292 | -7/Zion | Accompanied by 2 allies 11293 | -7/Zion | Commander's escort returned to base 11293 | -7/Zion | Commander's escort returned to base 11334 | -7/Zion | Given the Hacking Drone Bay 11337 | -7/Zion | Found Prototype Device 11430 | -7/Zion | Discovered new exit (range 13) 11654 | -7/Zion | Build established: Scavenger-Gunner 11765 | -7/Zion | Learned location of Extension (-6) 11769 | -7/Zion | Learned location of Data Miner (-6) 11826 | -7/Zion | Learned 4 Factory zone layouts 12025 | -7/Zion | Given A8's code to call for help 12253 | -7/Zion | Learned Factory security intel 12311 | -7/Zion | Imprinted 12314 | -7/Zion | Declared Zion's savior 12511 | -7/Zion | Visited the Megawrench Repair Shop 12511 | -7/Zion | Megawrench repaired 11 parts 12647 | -7/Zion | Identified exit to Proximity Caves 12673 | -7/Zion | Entered Proximity Caves 12673 | -6/Proximity Caves | Accompanied by 4 allies 12678 | -6/Proximity Caves | Spotter reported a threat 12750 | -6/Proximity Caves | Learned location of 1 exit from Factory 13215 | -6/Proximity Caves | Attracted the attention of an 0b10 checkpoint 13279 | -6/Proximity Caves | Discovered new exit (range 13) 13309 | -6/Proximity Caves | Identified exit to Factory 13715 | -6/Proximity Caves | Entered Factory 13715 | -6/Factory | Evolved 2 slots: Power x1, Weapon x1 13716 | -6/Factory | Identified exit to Factory 13717 | -6/Factory | Identified exit to Lower Caves 13719 | -6/Factory | Loaded intel: 27 terminal locations 13794 | -6/Factory | Identified Hacking Drone Bay 13806 | -6/Factory | Identified exit to Extension 13833 | -6/Factory | Zion Offense Resupply teleported in 13845 | -6/Factory | Found Prototype Processor 13919 | -6/Factory | Identified Exp. Targeting Computer 13999 | -6/Factory | Garrison activated, responded to threat 14047 | -6/Factory | Destroyed 10 combat bots 14186 | -6/Factory | Destroyed 7 combat bots 14291 | -6/Factory | Entered Extension 14292 | -6/Extension | Loaded intel: 21 trap records 14419 | -6/Extension | Rescued a captive Derelict 14420 | -6/Extension | Rescued a captive Derelict 14447 | -6/Extension | Zion Heavy squad teleported in 14466 | -6/Extension | Rescued a captive Derelict 14539 | -6/Extension | Rescued a captive Derelict 14540 | -6/Extension | Rescued a captive Derelict 14797 | -6/Extension | Build established: Gunner 14840 | -6/Extension | Spotted B-75 Beast 14857 | -6/Extension | Destroyed B-75 Beast 14861 | -6/Extension | Spotted B-75 Beast 14875 | -6/Extension | Destroyed B-75 Beast 15043 | -6/Extension | Rescued a captive Derelict 15206 | -6/Extension | Retrieved Zion intel report: Component Stockpiles 15262 | -6/Extension | Identified exit to Cetus 15286 | -6/Extension | Retrieved Zion intel report: Active Terminals 15306 | -6/Extension | Rescued a captive Derelict 15469 | -6/Extension | Found Prototype Protection 15469 | -6/Extension | Identified Zio. Weapon Casing 15592 | -6/Extension | Retrieved Zion intel report: Prototype Stockpiles 15593 | -6/Extension | Zion Fire squad teleported in 15601 | -6/Extension | Build established: Scavenger-Gunner 15605 | -6/Extension | Terminal network hard line cut 15973 | -6/Extension | Rescued A7 16066 | -6/Extension | Disrupted transfer network 16253 | -6/Extension | Discovered exit to Factory (range 10) 16273 | -6/Extension | Entered Cetus 16273 | -6/Cetus | Accompanied by 7 allies (A7) 16278 | -6/Cetus | Acquired a Cetus Manufacturing Module code from A7 16298 | -6/Cetus | Spotted Cetus Guard 16298 | -6/Cetus | Spotted Cetus Guard 16304 | -6/Cetus | Spotted Cetus Guard 16307 | -6/Cetus | Destroyed Cetus Guard 16308 | -6/Cetus | Allies destroyed Cetus Guard 16310 | -6/Cetus | Allies destroyed Cetus Guard 16421 | -6/Cetus | Started Cetus Manufacturing Module 16446 | -6/Cetus | Manufactured an Enhanced Grunt 16471 | -6/Cetus | Manufactured an Enhanced Grunt 16496 | -6/Cetus | Manufactured an Enhanced Grunt 16521 | -6/Cetus | Manufactured an Enhanced Grunt 16546 | -6/Cetus | Manufactured an Enhanced Grunt 16582 | -6/Cetus | Discovered new exit (range 15) 16604 | -6/Cetus | Identified exit to Archives 16615 | -6/Cetus | Entered Archives 16615 | -6/Archives | Accompanied by 8 allies (A7) 16680 | -6/Archives | Discovered new exit (range 16) 16764 | -6/Archives | Identified exit to Hub_04(d) 16835 | -6/Archives | Build established: Commander-Gunner 17134 | -6/Archives | Entered Hub_04(d) 17134 | -6/Hub_04(d) | Accompanied by 7 allies 17181 | -6/Hub_04(d) | Retrieved Zion intel report: Guard Positions 17182 | -6/Hub_04(d) | Zion Recon squad teleported in 17219 | -6/Hub_04(d) | Discovered exit to Factory (range 24) 17223 | -6/Hub_04(d) | Discovered exit to Factory (range 35) 17834 | -6/Hub_04(d) | First assault squad dispatched 17998 | -6/Hub_04(d) | Network Hub disabled 18025 | -6/Hub_04(d) | Spotted Lightning 18026 | -6/Hub_04(d) | Spotted Lightning 18029 | -6/Hub_04(d) | Spotted Lightning 18063 | -6/Hub_04(d) | Entered Factory 18063 | -5/Factory | Evolved 2 slots: Utility x2 18089 | -5/Factory | Lost 4 parts (1n2u1w) 18334 | -5/Factory | Zion Fire squad teleported in 18356 | -5/Factory | Build established: Scavenger-Skirmisher 18357 | -5/Factory | Sucked down chute 18357 | -5/Factory | Entered Waste 18357 | -5/Waste | Met up with 2 allies sucked down the chute earlier 18372 | -5/Waste | EMP discharged 18373 | -5/Waste | Spotted C-40 Crusher 18380 | -5/Waste | Allies destroyed C-40 Crusher 18385 | -5/Waste | 1 allies followed down the chute 18404 | -5/Waste | Spotted C-40 Crusher 18409 | -5/Waste | Destroyed C-40 Crusher 18413 | -5/Waste | Destroyed C-40 Crusher 18421 | -5/Waste | Destroyed C-40 Crusher 18469 | -5/Waste | Destroyed C-40 Crusher 18472 | -5/Waste | EMP discharged 18472 | -5/Waste | System corruption reached 10% 18489 | -5/Waste | Allies destroyed C-40 Crusher 18501 | -5/Waste | Discovered new exit (range 10) 18514 | -5/Waste | Identified exit to Factory 18518 | -5/Waste | Entered Factory 18518 | -5/Factory | Accompanied by 3 allies 18602 | -5/Factory | Found Prototype Launcher 18602 | -5/Factory | Identified Tesla Bomb Launcher 18960 | -5/Factory | Fabricated Arm. Huge Wheel? 19448 | -5/Factory | Destroyed 9 combat bots 19713 | -5/Factory | Discovered new exit (range 9) 19733 | -5/Factory | Terminal network hard line cut 19754 | -5/Factory | Identified exit to Factory 20083 | -5/Factory | Repaired Centrium Medium Armor Plating 20838 | -5/Factory | Lost 6 parts (2p1u3w) 20918 | -5/Factory | First assault squad dispatched 20942 | -5/Factory | Discovered exit to Factory (range 16) 21135 | -5/Factory | Lost 6 parts (1p1n2u2w) 21427 | -5/Factory | Discovered exit to Factory (range 19) 21465 | -5/Factory | Discovered exit to Factory (range 19) 21569 | -5/Factory | Found Powered Armor 22057 | -5/Factory | Discovered new exit (range 19) 22154 | -5/Factory | Identified exit to Upper Caves 22156 | -5/Factory | Entered Upper Caves 22157 | -5/Upper Caves | Encountered a Warlord checkpoint 22271 | -5/Upper Caves | Learned 4 Factory zone layouts 22703 | -5/Upper Caves | Discovered new exit (range 13) 22728 | -5/Upper Caves | Identified exit to Upper Caves 22730 | -5/Upper Caves | Entered another Upper Caves area 22961 | -5/Upper Caves | Discovered exit to Factory (range 17) 23150 | -5/Upper Caves | Identified exit to Warlord 23241 | -5/Upper Caves | Learned location of 1 exit from Factory 23981 | -5/Upper Caves | Entered Warlord 24036 | -5/Warlord | System corruption cleaned by Quarantine Array 24649 | -5/Warlord | Rebuked by Warlord 24673 | -5/Warlord | Warlord's base attacked by MAIN.C 24673 | -5/Warlord | Found Exp. Targeting Computer 24686 | -5/Warlord | Found Prototype Reactor 24694 | -5/Warlord | Found Prototype Processor 24694 | -5/Warlord | Identified Exp. Core Analyzer 24897 | -5/Warlord | Warlord forces counterattacked 24978 | -5/Warlord | Spotted Executioner 24979 | -5/Warlord | Spotted Striker 24979 | -5/Warlord | Spotted Executioner 24979 | -5/Warlord | Spotted Striker 25009 | -5/Warlord | Destroyed Striker 25012 | -5/Warlord | Destroyed Executioner 25073 | -5/Warlord | Spotted Striker 25078 | -5/Warlord | Spotted Executioner 25087 | -5/Warlord | Spotted Executioner 25118 | -5/Warlord | Destroyed Executioner 25151 | -5/Warlord | Build established: Scavenger-Gunner 25183 | -5/Warlord | Destroyed Executioner 25295 | -5/Warlord | Spotted Executioner 25306 | -5/Warlord | Core integrity fell below 50% 25319 | -5/Warlord | Destroyed Executioner 25342 | -5/Warlord | Found Exp. Core Analyzer 25347 | -5/Warlord | Lost 4 parts (2u2w) 25348 | -5/Warlord | Warlord base infiltrated, sounded retreat 25414 | -5/Warlord | Spotted B-75 Beast 25474 | -5/Warlord | Spotted Striker 25477 | -5/Warlord | Spotted Striker 25479 | -5/Warlord | Spotted Executioner 25553 | -5/Warlord | Discovered new exit (range 12) 25567 | -5/Warlord | Identified exit to Proximity Caves 25570 | -5/Warlord | Entered Proximity Caves 25667 | -4/Proximity Caves | Encountered a Derelict guarding a broken Freighter 25778 | -4/Proximity Caves | Found Prototype Launcher 25778 | -4/Proximity Caves | Identified Hellfire Missile Launcher 25784 | -4/Proximity Caves | Found Prototype Processor 25784 | -4/Proximity Caves | Identified Spectral Analyzer 25950 | -4/Proximity Caves | Learned Research emergency access door positions 26160 | -4/Proximity Caves | Spotter reported a threat 26166 | -4/Proximity Caves | Discovered exit to Factory (range 15) 26279 | -4/Proximity Caves | Build established: Skirmisher 26332 | -4/Proximity Caves | Entered Factory 26332 | -4/Factory | Evolved 2 slots: Utility x1, Weapon x1 26333 | -4/Factory | Identified exit to Research 26334 | -4/Factory | Identified exit to Armory 26531 | -4/Factory | Retrieved Zion intel report: Branch Access 26531 | -4/Factory | Identified exit to Upper Caves 26532 | -4/Factory | Zion Thermal Resupply teleported in 26809 | -4/Factory | Zion Heavy squad teleported in 27384 | -4/Factory | Repaired Arm. Huge Wheel 27470 | -4/Factory | Repaired Adv. Terrain Scanner 27553 | -4/Factory | Terminal network hard line cut 27580 | -4/Factory | Repaired Centrium Medium Armor Plating? 27636 | -4/Factory | Garrison activated, responded to threat 27832 | -4/Factory | First assault squad dispatched 27845 | -4/Factory | Entered Upper Caves 27861 | -4/Upper Caves | Learned location of 1 exit from Proximity Caves 28360 | -4/Upper Caves | Discovered new exit (range 16) 28424 | -4/Upper Caves | Identified exit to Upper Caves 28436 | -4/Upper Caves | Entered another Upper Caves area 28438 | -4/Upper Caves | Encountered a Warlord checkpoint 28629 | -4/Upper Caves | Learned 12 Research zone layouts 29067 | -4/Upper Caves | Discovered new exit (range 18) 29214 | -4/Upper Caves | Identified exit to Zhirov 29321 | -4/Upper Caves | Entered Zhirov 29321 | -4/Zhirov | Discovered new exit (range 3) 29353 | -4/Zhirov | Met Zhirov 29382 | -4/Zhirov | Learned location of Testing (-3) 29382 | -4/Zhirov | Learned location of Command (-1) 29397 | -4/Zhirov | Zhirov requested help retrieving the SGEMP Prototype 29421 | -4/Zhirov | Found Alien Artifact 29421 | -4/Zhirov | Identified Integrated Reactor 29421 | -4/Zhirov | Installed Integrated Reactor, increased core energy generation (+10) 29444 | -4/Zhirov | Found Alien Artifact 29568 | -4/Zhirov | Identified exit to Proximity Caves 29587 | -4/Zhirov | Entered Proximity Caves 29687 | -3/Proximity Caves | Spotter reported a threat 29959 | -3/Proximity Caves | Spotter reported a threat 30334 | -3/Proximity Caves | Spotted B-86 Titan 30544 | -3/Proximity Caves | Entered Research 30544 | -3/Research | Evolved 2 slots: Power x1, Utility x1 30545 | -3/Research | Identified exit to Research 30547 | -3/Research | Loaded intel: 4 garrison access locations 30748 | -3/Research | Identified Transdimensional Reconstructor 30748 | -3/Research | Identified Vortex Chain Reactor 30782 | -3/Research | Zion Defense Resupply teleported in 30800 | -3/Research | Found Unknown Protection 30800 | -3/Research | Identified Adv. Powered Armor 30832 | -3/Research | Found Unknown Device 30832 | -3/Research | Identified Quantum Capacitor 31014 | -3/Research | Zion Heavy squad teleported in 31150 | -3/Research | Identified exit to Testing 31376 | -3/Research | Entered Testing 31376 | -3/Testing | Accompanied by 1 ally 31508 | -3/Testing | Build established: Scavenger-Skirmisher 31695 | -3/Testing | Found Prototype Device 31695 | -3/Testing | Identified AEGIS Remote Shield 31803 | -3/Testing | Spotted Alpha 7 31815 | -3/Testing | Destroyed Alpha 7 31892 | -3/Testing | Rewired 1Z-BXV(L) 31910 | -3/Testing | Rewired E6-Z71(L) 31911 | -3/Testing | Rewired 05-1AC(L) 32303 | -3/Testing | Found Prototype Energy Gun 32303 | -3/Testing | Identified Hyp. EM Gauss Rifle 32379 | -3/Testing | Found Prototype Energy Cannon 32379 | -3/Testing | Identified Cld. Nova Cannon 32615 | -3/Testing | Discovered exit to Research (range 19) 32629 | -3/Testing | Terminal network hard line cut 33192 | -3/Testing | Entered Research 33192 | -2/Research | Evolved 2 slots: Utility x2 33372 | -2/Research | Found Tesla Bomb Launcher 34169 | -2/Research | Identified exit to Access 34176 | -2/Research | Identified exit to Quarantine 34199 | -2/Research | Retrieved Zion intel report: Unaware Analyses 34200 | -2/Research | Zion Light squad teleported in 34432 | -2/Research | Terminal network hard line cut 34442 | -2/Research | First assault squad dispatched 34526 | -2/Research | Entered Quarantine 34526 | -2/Quarantine | Accompanied by 2 allies 34563 | -2/Quarantine | Found Transdimensional Reconstructor 34686 | -2/Quarantine | Enhanced Grunt warped into view, answering call for help 34689 | -2/Quarantine | Enhanced Grunt warped into view, answering call for help 34803 | -2/Quarantine | Retrieved Zion intel report: Trap Installations 34858 | -2/Quarantine | Retrieved Zion intel report: Prototype Stockpiles 34973 | -2/Quarantine | Retrieved Zion intel report: Component Schematics 35007 | -2/Quarantine | Found Alien Artifact 35007 | -2/Quarantine | Identified Core Reset Matrix 35007 | -2/Quarantine | Used Core Reset Matrix 35011 | -2/Quarantine | Detected hypermatrix surge 35011 | -2/Quarantine | Sensed 10 artifacts in vicinity 35026 | -2/Quarantine | First assault squad dispatched 35091 | -2/Quarantine | Retrieved Zion intel report: Guard Positions 35128 | -2/Quarantine | Garrison activated, responded to threat 35205 | -2/Quarantine | Found Subatomic Replicator 35231 | -2/Quarantine | Retrieved Zion intel report: Branch Access 35364 | -2/Quarantine | Retrieved Zion intel report: Prototype Schematics 35622 | -2/Quarantine | Destroyed 9 combat bots 35648 | -2/Quarantine | Build established: Skirmisher 35765 | -2/Quarantine | Found Prototype Device 35765 | -2/Quarantine | Identified Exp. Thermal Shield 35953 | -2/Quarantine | Discovered exit to Access (range 16) 36004 | -2/Quarantine | Terminal network hard line cut 36041 | -2/Quarantine | High security lockdown imminent 36080 | -2/Quarantine | Destroyed 14 combat bots 36121 | -2/Quarantine | High security lockdown engaged 36126 | -2/Quarantine | Spotted Fortress 36185 | -2/Quarantine | Spotted Executioner 36202 | -2/Quarantine | Destroyed 11 combat bots 36230 | -2/Quarantine | Lost 3 parts (2u1w) 36276 | -2/Quarantine | Discovered new exit (range 5) 36281 | -2/Quarantine | Identified exit to Section 7 36284 | -2/Quarantine | Entered Section 7 36285 | -2/Section 7 | Sensed 19 artifacts in vicinity 36559 | -2/Section 7 | System corruption reached 10% 36784 | -2/Section 7 | First assault squad dispatched 36830 | -2/Section 7 | Found Integrity Redistributor 36835 | -2/Section 7 | Used Integrity Redistributor, redistributed integrity from core (-398) 36884 | -2/Section 7 | Core integrity fell below 50% 37036 | -2/Section 7 | Found Integrity Redistributor 37123 | -2/Section 7 | Spotted S7 Guard 37169 | -2/Section 7 | Spotted S7 Guard 37170 | -2/Section 7 | Destroyed S7 Guard 37201 | -2/Section 7 | Destroyed S7 Guard 37211 | -2/Section 7 | Found Prototype Protection 37211 | -2/Section 7 | Identified Hvy. Regenerative Plating 37226 | -2/Section 7 | Found Hvy. Regenerative Plating 37272 | -2/Section 7 | Spotted Alpha 7 37272 | -2/Section 7 | Spotted Alpha 7 37292 | -2/Section 7 | Destroyed Alpha 7 37318 | -2/Section 7 | Destroyed Alpha 7 37326 | -2/Section 7 | Warped through subspace 37413 | -2/Section 7 | Retrieved Zion intel report: Component Stockpiles 37548 | -2/Section 7 | Found Integrated Thermoelectric Network 37548 | -2/Section 7 | Installed Integrated Thermoelectric Network, gained heat-energy exchange potential 37632 | -2/Section 7 | Terminal network hard line cut 37678 | -2/Section 7 | Destroyed 15 combat bots 37847 | -2/Section 7 | Scanned by Researcher 37862 | -2/Section 7 | High security lockdown imminent 37874 | -2/Section 7 | Build established: Scavenger-Gunner 37942 | -2/Section 7 | High security lockdown engaged 37964 | -2/Section 7 | Destroyed 10 combat bots 38008 | -2/Section 7 | Found Sigix Sheargun 38011 | -2/Section 7 | Found Sigix Sheargun 38039 | -2/Section 7 | Used Subatomic Replicator to replicate Sigix Sheargun 38124 | -2/Section 7 | Spotted Striker 38125 | -2/Section 7 | Spotted Striker 38129 | -2/Section 7 | Spotted Striker 38129 | -2/Section 7 | Spotted Striker 38141 | -2/Section 7 | Destroyed Striker 38147 | -2/Section 7 | Destroyed Striker 38153 | -2/Section 7 | Destroyed Striker 38159 | -2/Section 7 | Destroyed Striker 38184 | -2/Section 7 | Spotted Executioner 38185 | -2/Section 7 | Spotted Executioner 38186 | -2/Section 7 | Spotted Investigator 38194 | -2/Section 7 | Destroyed Investigator 38194 | -2/Section 7 | Destroyed Executioner 38194 | -2/Section 7 | Destroyed Executioner 38256 | -2/Section 7 | Destroyed 38 combat bots 38336 | -2/Section 7 | Spotted Striker 38339 | -2/Section 7 | Destroyed Striker 38343 | -2/Section 7 | Spotted Striker 38345 | -2/Section 7 | Spotted Executioner 38354 | -2/Section 7 | Spotted Striker 38357 | -2/Section 7 | Destroyed Striker 38374 | -2/Section 7 | Destroyed Striker 38395 | -2/Section 7 | Destroyed Executioner 38435 | -2/Section 7 | Destroyed 25 combat bots 38530 | -2/Section 7 | Spotted Striker 38538 | -2/Section 7 | Sterilization system engaged 38538 | -2/Section 7 | Non-combat units ordered to evacuate 38538 | -2/Section 7 | Spotted Striker 38548 | -2/Section 7 | Destroyed Striker 38564 | -2/Section 7 | Destroyed Striker 38567 | -2/Section 7 | Spotted Striker 38619 | -2/Section 7 | Destroyed Striker 38627 | -2/Section 7 | Lost 5 parts (3p2w) 38638 | -2/Section 7 | Combat units ordered to evacuate 38660 | -2/Section 7 | Destroyed 30 combat bots 38838 | -2/Section 7 | Ambient heat levels rising (+10) 38877 | -2/Section 7 | Spotted Executioner 38882 | -2/Section 7 | Spotted Executioner 38887 | -2/Section 7 | Destroyed Executioner 38891 | -2/Section 7 | Destroyed Executioner 38988 | -2/Section 7 | Ambient heat levels rising (+10) 39057 | -2/Section 7 | Spotted B-99 Colossus 39083 | -2/Section 7 | Destroyed B-99 Colossus 39138 | -2/Section 7 | Ambient heat levels rising (+10) 39194 | -2/Section 7 | Found Core Expander 39194 | -2/Section 7 | Installed Core Expander, added new Power slot 39273 | -2/Section 7 | Found LRC Storage 39273 | -2/Section 7 | Installed LRC Storage, increased inventory capacity (+2) 39288 | -2/Section 7 | Ambient heat levels rising (+10) 39438 | -2/Section 7 | Ambient heat levels rising (+10) 39502 | -2/Section 7 | Build established: Scavenger-Mutant 39544 | -2/Section 7 | Found Core Membrane 39544 | -2/Section 7 | Installed Core Membrane, gained immunity to corruption 39577 | -2/Section 7 | Found Prototype Processor 39578 | -2/Section 7 | Identified Exp. Targeting Computer 39588 | -2/Section 7 | Ambient heat levels rising (+10) 39738 | -2/Section 7 | Ambient heat levels rising (+10) 39768 | -2/Section 7 | Found Transdimensional Reconstructor 39888 | -2/Section 7 | Ambient heat levels rising (+10) 40038 | -2/Section 7 | Ambient heat levels rising (+10) 40093 | -2/Section 7 | Found Sigix Sheargun 40097 | -2/Section 7 | Found Sigix Sheargun 40188 | -2/Section 7 | Ambient heat levels rising (+10) 40295 | -2/Section 7 | Build established: Scavenger-Gunner 40338 | -2/Section 7 | Ambient heat levels rising (+10) 40384 | -2/Section 7 | Found Spacefold Activator 40473 | -2/Section 7 | Found Prototype Launcher 40488 | -2/Section 7 | Ambient heat levels rising (+10) 40505 | -2/Section 7 | Discovered exit to Access (range 3) 40612 | -2/Section 7 | Entered Access 40612 | -1/Access | Evolved 2 slots: Utility x2 40618 | -1/Access | Used Integrity Redistributor, redistributed integrity from core (-175) 40862 | -1/Access | First assault squad dispatched 40938 | -1/Access | Destroyed 10 combat bots 41255 | -1/Access | Identified Gui. Micro-nuke Launcher 41400 | -1/Access | High security lockdown imminent 41480 | -1/Access | High security lockdown engaged 41629 | -1/Access | Spotted Investigator 41652 | -1/Access | Destroyed Investigator 41666 | -1/Access | Spotted Executioner 41666 | -1/Access | Spotted Executioner 41670 | -1/Access | Destroyed Executioner 41679 | -1/Access | Destroyed Executioner 41700 | -1/Access | Destroyed 19 combat bots 41764 | -1/Access | Spotted Striker 41764 | -1/Access | Spotted Striker 41779 | -1/Access | Destroyed Striker 41782 | -1/Access | Destroyed Striker 41817 | -1/Access | Found Prototype Launcher 41820 | -1/Access | Destroyed 13 combat bots 41881 | -1/Access | Spotted Striker 41887 | -1/Access | Destroyed Striker 41887 | -1/Access | Spotted Executioner 41887 | -1/Access | Spotted Striker 41887 | -1/Access | Spotted Investigator 41889 | -1/Access | Destroyed Investigator 41892 | -1/Access | Destroyed Striker 41892 | -1/Access | Destroyed Executioner 41915 | -1/Access | Destroyed 19 combat bots 41982 | -1/Access | Spotted Executioner 41982 | -1/Access | Spotted Striker 41985 | -1/Access | Destroyed Striker 41987 | -1/Access | Destroyed Executioner 42017 | -1/Access | Destroyed 14 combat bots 42061 | -1/Access | Spotted Executioner 42070 | -1/Access | Identified Containment Facilitator 42075 | -1/Access | Spotted Investigator 42084 | -1/Access | Warped through subspace 42113 | -1/Access | Garrison activated, responded to threat 42118 | -1/Access | Lost 3 parts (1u2w) 42344 | -1/Access | Spotted Striker 42361 | -1/Access | Destroyed Striker 42403 | -1/Access | Spotted Striker 42419 | -1/Access | Spotted Executioner 42424 | -1/Access | Destroyed Striker 42429 | -1/Access | Spotted Striker 42430 | -1/Access | Spotted Striker 42437 | -1/Access | Sterilization system engaged 42437 | -1/Access | Spotted Investigator 42443 | -1/Access | Destroyed Striker 42468 | -1/Access | Destroyed 18 combat bots 42486 | -1/Access | Spotted Striker 42495 | -1/Access | Destroyed Investigator 42536 | -1/Access | Destroyed 7 combat bots 42573 | -1/Access | Destroyed Striker 42600 | -1/Access | Destroyed Executioner 42672 | -1/Access | Destroyed 7 combat bots 42728 | -1/Access | Destroyed Striker 42737 | -1/Access | Ambient heat levels rising (+10) 42887 | -1/Access | Ambient heat levels rising (+10) 43037 | -1/Access | Ambient heat levels rising (+10) 43063 | -1/Access | Build established: Alien-Gunner 43187 | -1/Access | Ambient heat levels rising (+10) 43263 | -1/Access | Destroyed Executioner 43337 | -1/Access | Ambient heat levels rising (+10) 43373 | -1/Access | Build established: Scavenger-Gunner 43487 | -1/Access | Ambient heat levels rising (+10) 43493 | -1/Access | Found Prototype Processor 43494 | -1/Access | Identified Spectral Analyzer 43637 | -1/Access | Ambient heat levels rising (+10) 43787 | -1/Access | Ambient heat levels rising (+10) 43937 | -1/Access | Ambient heat levels rising (+10) 43972 | -1/Access | Discovered new exit (range 10) 44001 | -1/Access | Entered Command 44184 | -1/Command | Found Unknown Device 44184 | -1/Command | Identified Antimissile System 44195 | -1/Command | Found Antimissile System 44250 | -1/Command | Phase Generator disabled 44251 | -1/Command | First assault squad dispatched 44391 | -1/Command | High security lockdown imminent 44448 | -1/Command | Destroyed 12 combat bots 44471 | -1/Command | High security lockdown engaged 44670 | -1/Command | Destroyed 18 combat bots 44724 | -1/Command | Destroyed Investigator 44804 | -1/Command | Destroyed 17 combat bots 44843 | -1/Command | Spotted Striker 44843 | -1/Command | Spotted Striker 44855 | -1/Command | Destroyed Striker 44861 | -1/Command | Destroyed Investigator 44879 | -1/Command | Destroyed Striker 44884 | -1/Command | Core integrity fell below 50% 44901 | -1/Command | Spotted Executioner 44903 | -1/Command | Spotted Striker 44918 | -1/Command | Destroyed Executioner 44921 | -1/Command | Spotted Striker 44924 | -1/Command | Destroyed Striker 44928 | -1/Command | Lost 5 parts (1p1n1u2w) 44954 | -1/Command | Destroyed Striker 44992 | -1/Command | Lost 11 parts (2p5u4w) 45004 | -1/Command | Destroyed 24 combat bots 45073 | -1/Command | Destroyed Executioner 45073 | -1/Command | Destroyed Executioner 45082 | -1/Command | Spotted Executioner 45084 | -1/Command | Spotted Executioner 45085 | -1/Command | Spotted Executioner 45085 | -1/Command | Spotted Executioner 45085 | -1/Command | Spotted Striker 45087 | -1/Command | Spotted Executioner 45142 | -1/Command | Lost 5 parts (3p2u) 45145 | -1/Command | Destroyed 7 combat bots 45165 | -1/Command | Emitted hypermatrix ping 45170 | -1/Command | Assembled emerged from beneath the floor 45193 | -1/Command | Destroyed Striker 45259 | -1/Command | Lost 8 parts (4u4w) 45260 | -1/Command | Core integrity fell below 20% 45269 | -1/Command | Spotted Striker 45269 | -1/Command | Spotted Executioner 45269 | -1/Command | Spotted Striker 45273 | -1/Command | Spotted Executioner 45274 | -1/Command | Assembled emerged from beneath the floor 45275 | -1/Command | Allies destroyed Striker 45279 | -1/Command | Destroyed by Executioner with Helical Railgun Last Messages --------------- 45276_ Slug penetrates Wall. 45276_ Slug penetrates as-51874. 45276_ Slug penetrates as-95684. 45278_ Slug penetrates Executioner. 45278_ Slug penetrates as-51874. 45278_ Slug penetrates M-36 Artificer. 45278_ Slug penetrates H-88 Terminator. 45278_ Penetrated by Slug. 45278_ Hdn. Centrium Wheel destroyed. 45278_ Slug penetrates Wall. 45278_ Dropped Huge Storage Unit. 45279_ as-43994 destroyed. 45279_ Acquired Unknown Flight Unit. 45279_ Identified Impulse Thruster Array. 45279_ Penetrated by Slug. 45279_ Slug penetrates as-95684. 45279_ as-95684 destroyed. 45279_ Penetrated by Slug. 45279_ as-51874 destroyed. 45279_ Penetrated by Slug. Map ----- +----------------------------------------------------+ | ? ? ## ??? ?# #????#???????????????????? | | #? ??#? "" ? # ##???????????????????????? | | #??? ?#?""" ?# #######?#????????????????? | | #? ? ?#?""" # # !! #?#??#??????????????? | | ?? ?#?"" + # ! #?####??????????????? | | ???? "%[ # # #???##??????????????? | | ? ??#?#= ??# # ! ##??##?#????????????? | | # ???## ?? # + ##?###??#???????????? | | #?????# ? # # ###?##?#?#??????????? | | ? #??## ? # # #####?###???#???????? | | #?####? ? ? ? # # #?#####?#####???????? | | #?#???##??#??###?### # ####?##########????## | | ?#?##??#?#?####?## #########?##?##??##?#??#?? | | #+################## ###?#?###########?# ?#??## | | ??? ###### #?######?##?####### ??#?#? | | ?? ?+ ####?######?#####?# #?#?## | | ? # ##############?#### ###??# | | ?? # ##?#########?###### #####? | | ? # ################### #####? | | ? ?# ########+################## # ###### | | ? + ## %= ######"#"###?#? | | ? ??# # # #! = #####%%%%###### | | ? # ##### %!=[K ##### %%%###### | | ?? # %!!!/a "p #####%%%%###?#? | | ? ?# # ]%% """" #####%%%%###### | | ????# # # " "!@]"""" =# %%#%%%%###### | | ?#?# # ""T""EEh"" ####%%%%%###### | | ? ? """ l h m ###%#%%%%###?## | | ??### ## % E E ## ####%%#?#### | | ?#### "## iR= # #?####%###### | | ?#?## # # ##########E############%###### | | ###??? ? """"############%###"""""####%###?## | | ??#???#? # # ############"###""Y""###%%###### | | ???????##?? ##########?### / %%%%###### | | ???#?#???################### /=!%%%%###### | | ????????######??##?######### ==[%%%%##?### | | ???????????#??############## %![=%%%%#??##? | | ???????????##??#?###?####### %=!=!*%##?### | | ?????????????#?#??########## %![% !!###### | | ???????????#?############### ! ###### | | ????????????#?#?############ ###### | | ?????????????##?############ ###### | | ????????????#?#?#?########## ###?#? | | ?????????????????########### ###### | | ????????????????####?####### ###"##?### | | ??????????????? ????######## ##### # ??## | | ?????????????????#?#? # ##### # #?# | | ??????????????? ?? ? ? + ##### + ### | | ???????????????????# ? # ######## # ### | | ??????????????????????###### ######## # ### | +----------------------------------------------------+ Best States ------------- Heat Dissipation 239 Energy Generation 103 Energy Capacity 1700 Matter Stores 300 Matter Capacity 300 Sight Range 16 Robot Scan Range 18 Terrain Scan Range 20 Terrain Scan Density 210 Jamming Range 16 Power Amplification 20 Armor Coverage 1600 Resistance: KI 20 Utility Shielding 66 Weapon Shielding 100 Weapon Cycling 25 Evasion (%) 44 Targeting Accuracy 16 Core Analysis 12 Recoil Reduction 2 Offensive Hacking 10 Item Schematics ----------------- Coolant Network | -2/Quarantine | Archive Gravity Neutralizer | -2/Quarantine | Archive Exp. Core Analyzer | -2/Quarantine | Archive Exp. Cooling System | -2/Quarantine | Archive Shock Maul | -2/Quarantine | Z-intel Mni. Fusion Reactor | -2/Quarantine | Z-intel Cld. Field Propulsion Drive | -2/Quarantine | Z-intel Hdn. Centrium Leg | -2/Quarantine | Z-intel Imp. KE Penetrator | -2/Quarantine | Z-intel Point Singularity Launcher | -2/Quarantine | Z-intel Cld. Phase Cannon | -2/Quarantine | Z-intel Molecular Scythe | -2/Quarantine | Z-intel Mni. Smartbomb Launcher | -2/Quarantine | Z-intel Imp. Quantum Reactor | -2/Quarantine | Z-intel Adv. Plasma Rifle | -2/Quarantine | Z-intel Exp. EM Disruption Field | -2/Section 7 | Archive Helical Railgun | -2/Section 7 | Archive Robot Schematics ------------------ R-10 Processor | -2/Quarantine | Archive T-07 Excavator | -2/Section 7 | Archive A-27 Freighter | -2/Section 7 | Archive Fabricated ------------ Arm. Huge Wheel | x2 | -7/Factory Arm. Huge Wheel | x2 | -7/Factory Arm. Huge Wheel | x2 | -5/Factory Alien Tech Used ----------------- Integrated Reactor Core Reset Matrix Integrity Redistributor Transdimensional Reconstructor Integrated Thermoelectric Network Subatomic Replicator Sigix Sheargun Core Expander LRC Storage Core Membrane Spacefold Activator Achievements -------------- None Challenges ------------ None Game ------ Seed CouplerThermalGuard Manual? 0 Play Time 06:04:44 Cumulative 1708.9 hours Start 2023.05.15 @ 19:21:38 End 2023.05.27 @ 00:51:03 Sessions 9 Manual Loads 0 Difficulty Rogue Special Mode None Game No. 599 Rogue 599 Adventurer 0 Explorer 0 Win Type - Total 130 Types 27/13/56/7/1/2/22/1/1 Lore% 98 Gallery% 97 Achievement% 87 Wizard Run 0 Options --------- ASCII 0 Keyboard 0 Movement Numpad Keybinds 0 Fullscreen 2 Font 18/SmallcapsGlow Map View 76x50 Tactical HUD 1 Map Filters NONE Filters NONE Steam 1 RUN: 495496e9-3474-4533-9fef-633a90b07339